{"text_format":"1","workbook":"xlsx","n_sheets":2,"sheets":["3.4.4","Reference"],"not_rendered":{"charts":0,"images":1,"macros":1,"external_links":3,"defined_names":142,"comments":0,"pivot_tables":0},"unopened":[],"bounds":{"document_bytes":16777216,"sheet_cells":100000,"rows_first":2000,"rows_last":500,"rows_between":2000,"halvings":0,"cell_chars":16384,"cell_head_chars":4096},"cells_cut":0,"cells_raw":0,"read":"whole","date_system":"1900"}

{"sheet":"3.4.4","index":0,"n_rows":250,"n_cols":40,"rows_kept":250,"cut":false,"hidden":false,"merged":[[12,14,12,15],[13,14,13,15],[12,9,12,10],[13,9,13,10],[12,3,12,8],[13,3,13,8],[21,2,21,25],[28,16,28,20],[28,21,28,25],[19,15,19,17],[19,18,19,20],[19,21,19,25],[68,2,68,15],[69,2,69,15],[36,2,36,15],[31,21,31,25],[32,2,32,15],[32,16,32,20],[32,21,32,25],[67,2,67,15],[30,2,30,15],[30,16,30,20],[30,21,30,25],[33,2,33,15],[33,16,33,20],[33,21,33,25],[31,2,31,15],[38,2,38,15],[38,16,38,20],[38,21,38,25],[28,2,28,15],[1,1,1,25],[4,13,4,22],[15,21,15,25],[16,21,16,25],[16,18,16,20],[15,18,15,20],[2,1,2,25],[8,2,8,25],[15,2,15,14],[15,15,15,17],[4,2,4,4],[4,5,4,6],[16,2,16,14],[16,15,16,17],[31,16,31,20],[18,2,18,14],[18,15,18,17],[18,18,18,20],[18,21,18,25],[19,2,19,14],[26,19,26,25],[26,16,26,18],[37,2,37,15],[37,16,37,20],[37,21,37,25],[23,2,23,25],[36,21,36,25],[34,2,34,15],[34,16,34,20],[34,21,34,25],[35,2,35,15],[35,16,35,20],[35,21,35,25],[36,16,36,20],[55,11,55,15],[55,16,55,20],[56,6,56,10],[56,11,56,15],[39,2,39,15],[39,16,39,20],[40,2,40,25],[53,22,53,25],[43,3,43,15],[45,21,45,25],[46,21,46,25],[47,21,47,25],[48,21,48,25],[49,21,49,25],[44,21,44,25],[51,21,51,25],[45,15,45,20],[46,15,46,20],[47,15,47,20],[48,15,48,20],[39,21,39,25],[51,15,51,20],[45,2,45,14],[46,2,46,14],[47,2,47,14],[48,2,48,14],[49,2,49,14],[50,2,50,14],[51,2,51,14],[59,6,59,10],[59,11,59,15],[59,16,59,20],[56,16,56,20],[57,6,57,10],[57,11,57,15],[57,16,57,20],[58,2,58,5],[59,2,59,5],[58,6,58,10],[58,11,58,15],[58,16,58,20],[55,2,55,5],[57,2,57,5],[56,2,56,5],[55,6,55,10],[72,1,72,25],[74,4,74,11],[74,14,74,17],[74,18,74,25],[4,23,4,24],[6,2,6,9],[6,10,6,11],[67,16,67,20],[63,6,63,15],[63,16,63,20],[68,16,68,20],[69,16,69,20],[71,1,71,25],[61,6,61,15],[61,16,61,20],[52,15,52,20],[53,15,53,20],[52,2,52,14],[53,2,53,14],[62,6,62,15],[62,16,62,20],[64,16,64,20],[49,15,49,20],[50,15,50,20]]}
[null,null,null,null,null,null,null,null,null,null,null,null,null,null,null,null,null,null,null,null,null,null,null,null,null,null,true,true,"Revegetation",false,"Wing-tipped subsoiler","Biological Soil Restoration","< 1%","Normal",null,null,null,1,1,1]
[null,"SCM 3.4.4",null,null,null,null,null,null,null,null,null,null,null,null,null,null,null,null,null,null,null,null,null,null,null,null,null,false,"Revegetation with Soil Restoration",false,"Ripper","Exposed Subsoil Restoration","1% - 3%","Dense",null,null,null,2,2,2]
[null,"Revegetation and Soil Restoration",null,null,null,null,null,null,null,null,null,null,null,null,null,null,null,null,null,null,null,null,null,null,null,null,null,null,null,false,"VTSPR","None","> 3%","Hard",null,null,null,3,3,3]
[null,null,null,null,null,null,null,null,null,null,null,null,null,null,null,null,null,null,null,null,null,null,null,null,null,null,null,null,null,false,null,null,null,"Severe",null,null,null,4,4,4]
[null,null,"SCM ID:",null,null,null,null,null,null,null,null,null,null,"Revegetation and Soil Restoration Area:",null,null,null,null,null,null,null,null,null,null,null,"ac",{"$f":"IF(#REF!=\"Riparian Forest Buffer Meeting § 102.14(b)\",\"Y\",\"\")","v":{"$error":"#REF!"}},null,null,false,null,null,null,null,null,null,null,5,5,5]
[null,null,null,null,null,null,null,null,null,null,null,null,null,null,null,null,null,null,null,null,null,null,null,null,null,null,null,null,null,false,null,null,null,null,null,null,null,6,6,6]
[null,null,"2-year/24-hour precipitation depth:",null,null,null,null,null,null,null,null,null,"in",null,null,"Chapter 102",null,null,null,null,null,null,null,null,null,null,null,{"$f":"IF(AD7=TRUE,\"SCM_Cover\",\"SCM_Cover2\")","v":"SCM_Cover"},null,true,null,null,null,null,null,null,null,7,7,7]
[null,null,null,null,null,null,null,null,null,null,null,null,null,null,null,null,null,null,null,null,null,null,null,null,null,null,null,null,null,null,null,null,null,null,null,null,null,8,8,8]
[null,null,"Revegetation Information",null,null,null,null,null,null,null,null,null,null,null,null,null,null,null,null,null,null,null,null,null,null,null,null,null,null,null,null,null,null,null,null,null,null,9,9,9]
[null,null,null,null,null,null,null,null,null,null,null,null,null,null,null,null,null,null,null,null,null,null,null,null,null,null,null,null,null,null,null,null,null,null,null,null,null,10,10,10]
[null,null,null,"Tree Planting",null,null,null,null,null,null,null,null,null,null,null,null,null,null,null,null,null,null,null,null,null,null,null,null,null,null,null,null,null,null,null,null,null,11,11,11]
[null,null,null,null,null,null,null,null,null,null,null,null,null,null,null,null,null,null,null,null,null,null,null,null,null,null,null,null,null,null,null,null,null,null,null,null,null,12,12,12]
[null,null,null,"No. Deciduous Trees:",null,null,null,null,null,null,null,null,"Credit:",null,{"$f":"IF(J13<>\"\",J13*6,\"\")","v":""},null,"CF",null,null,null,null,null,null,null,null,null,null,null,null,null,null,null,null,null,null,null,null,"> 12",13,13]
[null,null,null,"No. Evergreen Trees:",null,null,null,null,null,null,null,null,"Credit:",null,{"$f":"IF(J14<>\"\",J14*10,\"\")","v":""},null,"CF",null,null,null,null,null,null,null,null,null,null,null,null,null,null,null,null,null,null,null,null,null,14,14]
[null,null,null,null,null,null,null,null,null,null,null,null,null,null,null,null,null,null,null,null,null,null,null,null,null,null,null,null,null,null,null,null,null,null,null,null,null,null,15,15]
[null,null,"Pre-Construction Land Cover Type",null,null,null,null,null,null,null,null,null,null,null,null,"Area (ac)",null,null,"HSG",null,null,"2-Year/24-Hour Runoff (CF)",null,null,null,null,null,null,"CN","Ia","Q","Volume","Soil Group",null,null,null,null,null,16,16]
[null,null,null,null,null,null,null,null,null,null,null,null,null,null,null,{"$f":"IF(X5<>\"\",X5,\"\")","v":""},null,null,null,null,null,{"$f":"IF(AF17<>\"\",AF17,\"\")","v":""},null,null,null,null,{"$f":"IF(AD7=TRUE,\"Ch102_LandCover\",\"Pre_LandCover\")","v":"Ch102_LandCover"},null,{"$f":"IF(AND(C17<>\"\",P17<>\"\",S17<>\"\"),VLOOKUP(C17,Reference!$DG$1:$DK$65,AG17,FALSE),\"\")","v":""},{"$f":"IF(AC17<>\"\",0.2*((1000/AC17)-10),\"\")","v":""},{"$f":"IF(AND(AD17<>\"\",$K$7<>\"\"),IF($K$7-AD17>0,(($K$7-AD17)^2)/($K$7+0.8*((1000/AC17)-10)),0),\"\")","v":""},{"$f":"IF(AE17<>\"\",P17*43560*(AE17/12),\"\")","v":""},{"$f":"IF(S17<>\"\",IF(S17=\"A\",2,IF(S17=\"B\",3,IF(S17=\"C\",4,IF(OR(S17=\"D\",S17=\"N/A\"),5,)))),\"\")","v":""},null,null,null,null,null,17,17]
[null,null,null,null,null,null,null,null,null,null,null,null,null,null,null,null,null,null,null,null,null,null,null,null,null,null,null,null,null,null,null,null,null,null,null,null,null,null,18,18]
[null,null,"Post-Construction SCM Land Cover Type",null,null,null,null,null,null,null,null,null,null,null,null,"Area (ac)",null,null,"HSG",null,null,"2-Year/24-Hour Runoff (CF)",null,null,null,null,null,null,"CN","Ia","Q","Volume","Soil Group",null,null,null,null,null,19,19]
[null,null,null,null,null,null,null,null,null,null,null,null,null,null,null,{"$f":"IF(X5<>\"\",X5,\"\")","v":""},null,null,{"$f":"IF(S17<>\"\",S17,\"\")","v":""},null,null,{"$f":"IF(AF20<>\"\",AF20,\"\")","v":""},null,null,null,null,{"$f":"IF(C20<>\"\",IF(C20=\"Open Space (Lawns, Parks, Golf Courses, Cemeteries, Etc.) - Good Condition (Grass Cover > 75%)\",1,IF(C20=\"Meadow-Continuous Grass, Protected from Grazing and Generally Mowed for Hay\",2,IF(C20=\"Woods (Good Condition)\",3))),\"\")","v":""},{"$f":"IF(AND(AC20<>\"\",AC17<>\"\"),IF(AC20<AC17,\"Y\",\"N\"),\"\")","v":""},{"$f":"IF(AND(C20<>\"\",P20<>\"\",S20<>\"\"),VLOOKUP(C20,Reference!$H$1:$L$4,AG20,FALSE),\"\")","v":""},{"$f":"IF(AC20<>\"\",0.2*((1000/AC20)-10),\"\")","v":""},{"$f":"IF(AND(AD20<>\"\",$K$7<>\"\"),IF($K$7-AD20>0,(($K$7-AD20)^2)/($K$7+0.8*((1000/AC20)-10)),0),\"\")","v":""},{"$f":"IF(AE20<>\"\",P20*43560*(AE20/12),\"\")","v":""},{"$f":"IF(S20<>\"\",IF(S20=\"A\",2,IF(S20=\"B\",3,IF(S20=\"C\",4,IF(OR(S20=\"D\",S20=\"N/A\"),5,)))),\"\")","v":""},null,null,null,null,null,20,20]
[null,null,null,null,null,null,null,null,null,null,null,null,null,null,null,null,null,null,null,null,null,null,null,null,null,null,null,null,null,null,null,null,null,null,null,null,null,null,"> 20",21]
[null,null,null,null,null,null,null,null,null,null,null,null,null,null,null,null,null,null,null,null,null,null,null,null,null,null,null,null,null,null,null,null,null,null,null,null,null,null,null,22]
[null,null,null,null,null,null,null,null,null,null,null,null,null,null,null,null,null,null,null,null,null,null,null,null,null,null,null,null,null,null,null,null,null,null,null,null,null,null,null,23]
[null,null,"Volume management credit unavailable because post-construction CN value is equal to or exceeds the pre-construction CN value for the pre-construction HSG soil type.",null,null,null,null,null,null,null,null,null,null,null,null,null,null,null,null,null,null,null,null,null,null,null,null,null,null,null,null,null,null,null,null,null,null,null,null,24]
[null,null,null,null,null,null,null,null,null,null,null,null,null,null,null,null,null,null,null,null,null,null,null,null,null,null,null,null,null,null,null,null,null,null,null,null,null,null,null,25]
[null,null,null,null,null,null,null,null,null,null,null,null,null,null,null,null,null,null,null,null,null,null,null,null,null,null,null,null,null,null,null,null,null,null,null,null,null,null,null,26]
[null,null,"Design Standards",null,null,null,null,null,null,null,null,null,null,null,null,null,"Variation:",null,null,null,null,null,null,null,null,null,null,null,null,null,null,null,null,null,null,null,null,null,null,27]
[null,null,null,null,null,null,null,null,null,null,null,null,null,null,null,null,null,null,null,null,null,null,null,null,null,null,null,null,null,null,null,null,null,null,null,null,null,null,null,28]
[null,null,"Parameter",null,null,null,null,null,null,null,null,null,null,null,null,null,"Standard",null,null,null,null,"Design Value",null,null,null,null,null,"Deduction","Required?","Entry Complete?",null,null,null,null,null,null,null,null,null,29]
[null,null,null,null,null,null,null,null,null,null,null,null,null,null,null,null,null,null,null,null,null,null,null,null,null,null,null,null,null,null,null,null,null,null,null,null,null,null,null,30]
[null,null,"Average slope over SCM area (maximum)",null,null,null,null,null,null,null,null,null,null,null,null,null,0.15,null,null,null,null,null,null,null,null,null,null,null,"Y",{"$f":"IF(OR(AC31=\"\",AND(AC31=\"Y\",V31<>\"\")),\"Y\",\"\")","v":""},null,null,null,null,null,null,null,null,null,31]
[null,null,"Soil restoration will not be implemented within 50 feet of any structure",null,null,null,null,null,null,null,null,null,null,null,null,null,true,null,null,null,null,null,null,null,null,null,null,{"$f":"IF(V32<>\"\",IF(V32=FALSE,0.25,0),\"\")","v":""},"Y","",null,null,null,null,null,null,null,null,null,32]
[null,null,"Post-restoration depth of A horizon (amended) soil layer (minimum) (in)",null,null,null,null,null,null,null,null,null,null,null,null,null,{"$f":"IF(V34<>\"\",IF(V34=\"> 12\",8,12),\"\")","v":""},null,null,null,null,null,null,null,null,null,{"$f":"IF(V33=\"> 12\",12,V33)","v":0},{"$f":"IF(AA33<>\"\",IF(AA33<(Q33-4),1,IF(AA33<(Q33-2),0.5,IF(AA33<Q33,0.25,0))),\"\")","v":{"$error":"#VALUE!"}},"Y","",null,null,null,null,null,null,null,null,null,33]
[null,null,"Depth to bedrock (in)",null,null,null,null,null,null,null,null,null,null,null,null,null,null,null,null,null,null,null,null,null,null,null,null,null,"Y","",null,null,null,null,null,null,null,null,null,34]
[null,null,"Depth to compacted limiting zone (in)",null,null,null,null,null,null,null,null,null,null,null,null,null,null,null,null,null,null,null,null,null,null,null,null,null,"Y","",null,null,null,null,null,null,null,null,null,35]
[null,null,"Subsoils will be decompacted to a depth of 12 - 20 inches and the top 8 inches or more of soils will be amended.",null,null,null,null,null,null,null,null,null,null,null,null,null,true,null,null,null,null,null,null,null,null,null,null,{"$f":"IF(AND(V36<>\"\",V35<>\"> 20\"),IF(V36=FALSE,0.5,0),\"\")","v":""},{"$f":"IF(V35<>\"> 20\",\"Y\",\"\")","v":"Y"},"",null,null,null,null,null,null,null,null,null,36]
[null,null,"Decompaction method",null,null,null,null,null,null,null,null,null,null,null,null,null,null,null,null,null,null,null,null,null,null,null,null,null,{"$f":"IF(V35<>\"> 20\",\"Y\",\"\")","v":"Y"},"",null,null,null,null,null,null,null,null,null,37]
[null,null,"Stormwater (other than direct precipitation) will be directed to the SCM",null,null,null,null,null,null,null,null,null,null,null,null,null,null,null,null,null,null,null,null,null,null,null,null,null,"Y","",null,null,null,null,null,null,null,null,null,38]
[null,null,"Impervious area routed to SCM (maximum) (ac)",null,null,null,null,null,null,null,null,null,null,null,null,null,{"$f":"IF(V38<>\"\",IF(V38=TRUE,X5*0.5,\"\"),\"\")","v":""},null,null,null,null,null,null,null,null,null,null,{"$f":"IF(AND(Q39<>\"\",V39<>\"\"),IF(V39>(Q39*1.1),(V39-(Q39*1.1))/(Q39*1.1),0),\"\")","v":""},{"$f":"IF(V38=TRUE,\"Y\",\"\")","v":""},"Y",null,null,null,null,null,null,null,null,null,39]
[null,null,"Inflow velocity at 10-year/24-hour storm (maximum) (fps)",null,null,null,null,null,null,null,null,null,null,null,null,null,2,null,null,null,null,null,null,null,null,null,null,{"$f":"IF(AND(Q40<>\"\",V40<>\"\"),IF(V40>(Q40*1.1),(V40-(Q40*1.1))/(Q40*1.1),0),\"\")","v":""},{"$f":"IF(V38=TRUE,\"Y\",\"\")","v":""},"Y",null,null,null,null,null,null,null,null,null,40]
[null,null,null,null,null,null,null,null,null,null,null,null,null,null,null,null,null,null,null,null,null,null,null,null,null,null,null,{"$f":"IF(AD41=\"Y\",IF(SUM(AB31:AB40)>1,1,SUM(AB31:AB40)),\"\")","v":""},null,{"$f":"IF(COUNTBLANK(AD31:AD40)=0,\"Y\",\"\")","v":""},null,null,null,null,null,null,null,null,null,41]
[null,null,"Soil Restoration Credit",null,null,null,null,null,null,null,null,null,null,null,null,null,null,null,null,null,null,null,null,null,null,null,null,null,null,null,null,null,null,null,null,null,null,null,null,42]
[null,null,null,null,null,null,null,null,null,null,null,null,null,null,null,null,null,null,null,null,null,null,null,null,null,null,null,null,null,null,null,null,null,null,null,null,null,null,null,43]
[null,null,null,"Manually enter all soil properties",null,null,null,null,null,null,null,null,null,null,null,null,null,null,null,null,null,null,null,null,null,null,null,null,null,null,null,null,null,null,null,null,null,null,null,44]
[null,null,null,null,null,null,null,null,null,null,null,null,null,null,null,null,null,null,null,null,null,"Pre",null,null,null,null,null,"Post",null,null,null,null,null,null,null,null,null,null,null,45]
[null,null,"USDA Soil Type:",null,null,null,null,null,null,null,null,null,null,null,null,null,null,null,null,null,null,{"$f":"IF(P46<>\"\",IF(P46=\"Clay\",\"Cl\",IF(P46=\"Clay Loam\",\"ClLo\",IF(P46=\"Loam\",\"Lo\",IF(P46=\"Loamy Sand\",\"LoSa\",IF(P46=\"Sand\",\"Sa\",IF(P46=\"Sandy Clay\",\"SaCl\",IF(P46=\"Sandy Clay Loam\",\"SaClLo\",IF(P46=\"Sandy Loam\",\"SaLo\",IF(P46=\"Silt\",\"Si\",IF(P46=\"Silty Clay\",\"SiCl\",IF(P46=\"Silty Clay Loam\",\"SiClLo\",IF(P46=\"Silty Loam\",\"SiLo\")))))))))))),\"\")","v":""},null,null,null,null,null,null,null,null,null,null,null,null,null,null,null,null,null,46]
[null,null,"Organic Matter, Pre-Restoration:",null,null,null,null,null,null,null,null,null,null,null,null,null,null,null,null,null,null,{"$f":"IF(P47<>\"\",IF(P47=\"< 1%\",\"OM1\",IF(P47=\"1% - 3%\",\"OM2\",IF(P47=\"> 3%\",\"OM4\"))),\"\")","v":""},null,null,null,null,null,{"$f":"IF(P48<>\"\",IF(P48=\"< 1%\",\"OM1\",IF(P48=\"1% - 3%\",\"OM2\",IF(P48=\"> 3%\",\"OM4\"))),\"\")","v":""},null,null,null,null,null,null,null,null,null,null,null,47]
[null,null,"Organic Matter, Post-Restoration:",null,null,null,null,null,null,null,null,null,null,null,null,null,null,null,null,null,null,{"$f":"IF(AND(V46<>\"\",V47<>\"\"),CONCATENATE(V46,\"_\",V47),\"\")","v":""},null,null,null,null,null,{"$f":"IF(AND(V46<>\"\",AB47<>\"\"),CONCATENATE(V46,\"_\",AB47),\"\")","v":""},null,null,null,null,null,null,null,null,null,null,null,48]
[null,null,"Field-Measured Bulk Density, Pre-Restoration (lbs/ft3):",null,null,null,null,null,null,null,null,null,null,null,null,null,null,null,null,null,null,{"$f":"IF(AND(V46<>\"\",V47<>\"\"),CONCATENATE(V46,\"_\",V47,\"a\"),\"\")","v":""},null,null,null,null,null,{"$f":"IF(AND(V46<>\"\",AB47<>\"\"),CONCATENATE(V46,\"_\",AB47,\"b\"),\"\")","v":""},null,null,null,null,null,null,null,null,null,null,null,49]
[null,null,"Compaction Level, Pre-Restoration:",null,null,null,null,null,null,null,null,null,null,null,null,{"$f":"IF(V50<>\"\",VLOOKUP(V50,INDIRECT(V49),3,FALSE),\"\")","v":""},null,null,null,null,null,{"$f":"IF(AND(V48<>\"\",P49<>\"\"),INDEX(INDIRECT(V48),MATCH(MIN(ABS(INDIRECT(V48)-P49)),ABS(INDIRECT(V48)-P49),0)),\"\")","v":""},null,null,null,null,null,{"$f":"IF(AND(V46<>\"\",AB47<>\"\"),CONCATENATE(V46,\"_\",AB47,\"a\"),\"\")","v":""},null,null,null,null,null,null,null,null,null,null,null,50]
[null,null,"Compaction Level, Pre-Restoration:",null,null,null,null,null,null,null,null,null,null,null,null,null,null,null,null,null,null,null,null,null,null,null,null,null,null,null,null,null,null,null,null,null,null,null,null,51]
[null,null,"Compaction Level, Post-Restoration:",null,null,null,null,null,null,null,null,null,null,null,null,"Normal",null,null,null,null,null,{"$f":"IF(V50<>\"\",_xlfn.XLOOKUP(P52,INDIRECT(AB49),INDIRECT(AB48)),\"\")","v":""},null,null,null,null,null,null,null,null,null,null,null,null,null,null,null,null,null,52]
[null,null,"Average Rooting Depth, Pre-Restoration (in)",null,null,null,null,null,null,null,null,null,null,null,null,null,null,null,null,null,null,null,null,null,null,null,null,{"$f":"IF(AND(AA20<>\"\",P53<>\"\",P54<>\"\"),IF(AA20=1,IF((P54-P53)<4,P54-P53,4),\"\"),\"\")","v":""},null,null,null,null,null,null,null,null,null,null,null,53]
[null,null,"Average Rooting Depth, Post-Restoration (in)",null,null,null,null,null,null,null,null,null,null,null,null,null,null,null,null,null,null,null,null,null,null,null,null,{"$f":"IF(AND(AA20<>\"\",P53<>\"\",P54<>\"\"),IF(AA20=2,IF((P54-P53)<8,P54-P53,8),\"\"),\"\")","v":""},null,null,null,null,null,null,null,null,null,null,null,54]
[null,null,null,null,null,null,null,null,null,null,null,null,null,null,null,null,null,null,null,null,null,null,null,null,null,null,null,{"$f":"IF(AND(AA20<>\"\",P53<>\"\",P54<>\"\"),IF(AA20=3,IF((P54-P53)<16,P54-P53,16),\"\"),\"\")","v":""},null,null,null,null,null,null,null,null,null,null,null,55]
[null,null,"Scenario",null,null,null,"Saturation (%)",null,null,null,null,"Field Capacity (%)",null,null,null,null,"Wilting Point (%)",null,null,null,null,null,null,null,null,null,null,{"$f":"IF(AA20<>\"\",IF(AA20=1,AB53,IF(AA20=2,AB54,IF(AA20=3,AB55))),\"\")","v":""},null,null,null,null,null,null,null,null,null,null,null,56]
[null,null,"Pre-Restoration",null,null,null,{"$f":"IF(V50<>\"\",VLOOKUP(V50,INDIRECT(V49),6,FALSE)/100,\"\")","v":""},null,null,null,null,{"$f":"IF(V50<>\"\",VLOOKUP(V50,INDIRECT(V49),5,FALSE)/100,\"\")","v":""},null,null,null,null,{"$f":"IF(V50<>\"\",VLOOKUP(V50,INDIRECT(V49),4,FALSE)/100,\"\")","v":""},null,null,null,null,null,null,null,null,null,null,null,null,null,null,null,null,null,null,null,null,null,null,57]
[null,null,"Post-Restoration",null,null,null,{"$f":"IF(V52<>\"\",VLOOKUP(V52,INDIRECT(AB50),6,FALSE)/100,\"\")","v":""},null,null,null,null,{"$f":"IF(V52<>\"\",VLOOKUP(V52,INDIRECT(AB50),5,FALSE)/100,\"\")","v":""},null,null,null,null,{"$f":"IF(V52<>\"\",VLOOKUP(V52,INDIRECT(AB50),4,FALSE)/100,\"\")","v":""},null,null,null,null,null,null,null,null,null,null,null,null,null,null,null,null,null,null,null,null,null,null,58]
[null,null,"Pre-Restoration",null,null,null,null,null,null,null,null,null,null,null,null,null,null,null,null,null,null,null,null,null,null,null,null,null,null,null,null,null,null,null,null,null,null,null,null,59]
[null,null,"Post-Restoration",null,null,null,null,null,null,null,null,null,null,null,null,null,null,null,null,null,null,null,null,null,null,null,null,null,null,null,null,null,null,null,null,null,null,null,null,60]
[null,null,null,null,null,null,null,null,null,null,null,null,null,null,null,null,null,null,null,null,null,null,null,null,null,null,null,null,null,null,null,null,null,null,null,null,null,null,null,61]
[null,null,null,null,null,null,"ET Void Space Credit (CF):",null,null,null,null,null,null,null,null,null,{"$f":"IF(AB62<>\"\",IF(AB62<0,0,AB62),\"\")","v":0},null,null,null,null,null,null,null,null,null,null,{"$f":"IF(AND(C17<>\"\",C20<>\"\",AB20<>\"N\"),IF(AND(P53<>\"\",P54<>\"\"),IF(AD4=TRUE,IF(AND(AD5<>TRUE,L58<>\"\",Q58<>\"\",L57<>\"\",Q57<>\"\"),((((L58-Q58)-(L57-Q57))*0.7*AB56)*X5*43560)/12,IF(AND(AD5=TRUE,L60<>\"\",Q60<>\"\",L59<>\"\",Q59<>\"\"),((((L60-Q60)-(L59-Q59))*0.7*AB56)*X5*43560)/12,\"\")),\"\"),\"\"),0)","v":0},null,null,null,null,null,null,null,null,null,null,null,62]
[null,null,null,null,null,null,"Infiltration Void Space Credit (CF):",null,null,null,null,null,null,null,null,null,{"$f":"IF(AND(C17<>\"\",C20<>\"\",AB20<>\"N\"),IF(AD4=TRUE,IF(AND(AD5<>TRUE,G57<>\"\",G58<>\"\",L57<>\"\",L58<>\"\",AA33<>\"\"),((G58-L58)-(G57-L57))*AA33*0.7*X5*43560*0.083333,IF(AND(AD5=TRUE,G59<>\"\",G60<>\"\",L59<>\"\",L60<>\"\",AA33<>\"\"),((G60-L60)-(G59-L59))*AA33*0.7*X5*43560*0.083333,\"\")),\"\"),0)","v":0},null,null,null,null,null,null,null,null,null,null,null,null,null,null,null,null,null,null,null,null,null,null,63]
[null,null,null,null,null,null,"Total Soil Restoration Credit (CF):",null,null,null,null,null,null,null,null,null,{"$f":"IF(AND(Q62<>\"\",Q63<>\"\"),Q62+Q63,\"\")","v":0},null,null,null,null,null,null,null,null,null,null,null,null,null,null,null,null,null,null,null,null,null,null,64]
[null,null,null,null,null,null,null,null,null,null,null,null,null,null,null,null,{"$f":"SUM(Q62:Q63)","v":0},null,null,null,null,null,null,null,null,null,null,null,null,null,null,null,null,null,null,null,null,null,null,65]
[null,null,"Total Credits",null,null,null,null,null,null,null,null,null,null,null,null,null,null,null,null,null,null,null,null,null,null,null,null,null,null,null,null,null,null,null,null,null,null,null,null,66]
[null,null,null,null,null,null,null,null,null,null,null,null,null,null,null,null,null,null,null,null,null,null,null,null,null,null,null,null,null,null,null,null,null,null,null,null,null,null,null,67]
[null,null,null,null,null,null,null,null,null,null,null,null,null,null,null,null,{"$f":"IF(AB41<>\"\",IF(Q64<>\"\",Q64,0)+IF(O13<>\"\",O13,0)+IF(O14<>\"\",O14,0),\"\")","v":""},null,null,null,null,null,null,null,null,null,null,null,null,null,null,null,null,null,null,null,null,null,null,68]
[null,null,"Deductions (CF):",null,null,null,null,null,null,null,null,null,null,null,null,null,{"$f":"IF(AND(AB41<>\"\",Q68<>\"\"),AB41*Q68,\"\")","v":""},null,null,null,null,null,null,null,null,null,null,null,null,null,null,null,null,null,null,null,null,null,null,69]
[null,null,"Final Volume Management Credit (CF):",null,null,null,null,null,null,null,null,null,null,null,null,null,{"$f":"IF(Q68<>\"\",Q68,0)-IF(Q69<>\"\",Q69,0)","v":0},null,null,null,null,null,null,null,null,null,null,null,null,null,null,null,null,null,null,null,null,null,null,70]
[null,null,null,null,null,null,null,null,null,null,null,null,null,null,null,null,null,null,null,null,null,null,null,null,null,null,null,null,null,null,null,null,null,null,null,null,null,null,null,71]
[null,"CERTIFICATION",null,null,null,null,null,null,null,null,null,null,null,null,null,null,null,null,null,null,null,null,null,null,null,null,null,null,null,null,null,null,null,null,null,null,null,null,null,72]
[null,"I certify under penalty of law and subject to the penalties of 18 Pa.C.S. § 4904 (relating to unsworn falsification to authorities) that this document and all attachments were prepared under my direction or supervision in accordance with a system designed to assure that qualified personnel properly gathered and evaluated the information submitted.  Based on my inquiry of the person or persons who manage the system, or those persons directly responsible for gathering the information, the information submitted is, to the best of my knowledge and belief, true, accurate, and complete.  I further certify that the structure, function, and calculations contained in this spreadsheet have not been modified in comparison to the spreadsheet DEP has posted to its website.",null,null,null,null,null,null,null,null,null,null,null,null,null,null,null,null,null,null,null,null,null,null,null,null,null,null,null,null,null,null,null,null,null,null,null,null,null,73]
[null,null,null,null,null,null,null,null,null,null,null,null,null,null,null,null,null,null,null,null,null,null,null,null,null,null,null,null,null,null,null,null,null,null,null,null,null,null,null,74]
[null,"User Name:",null,null,null,null,null,null,null,null,null,null,null,null,"User Company:",null,null,null,null,null,null,null,null,null,null,null,null,null,null,null,null,null,null,null,null,null,null,null,null,75]
[null,null,null,null,null,null,null,null,null,null,null,null,null,null,null,null,null,null,null,null,null,null,null,null,null,null,null,null,null,null,null,null,null,null,null,null,null,null,null,76]
[null,null,null,null,null,null,null,null,null,null,null,null,null,null,null,null,null,null,null,null,null,null,null,null,null,null,null,null,{"$f":"IF(AND(L55<>\"\",L59<>\"\"),IF(L59=\"Double Ring Infiltrometer\",ROUND(L55/4350,0),ROUND(L55/2900,0)),\"\")","v":""},null,null,null,null,null,null,null,null,null,null,77]
[null,null,null,null,null,null,null,null,null,null,null,null,null,null,null,null,null,null,null,null,null,null,null,null,null,null,null,null,null,null,null,null,null,null,null,null,null,null,null,78]
[null,null,null,null,null,null,null,null,null,null,null,null,null,null,null,null,null,null,null,null,null,null,null,null,null,null,null,null,null,null,null,null,null,null,null,null,null,null,null,79]
[null,null,null,null,null,null,null,null,null,null,null,null,null,null,null,null,null,null,null,null,null,null,null,null,null,null,null,null,null,null,null,null,null,null,null,null,null,null,null,80]
[null,null,null,null,null,null,null,null,null,null,null,null,null,null,null,null,null,null,null,null,null,null,null,null,null,null,null,null,null,null,null,null,null,null,null,null,null,null,null,81]
[null,null,null,null,null,null,null,null,null,null,null,null,null,null,null,null,null,null,null,null,null,null,null,null,null,null,null,null,null,null,null,null,null,null,null,null,null,null,null,82]
[null,null,null,null,null,null,null,null,null,null,null,null,null,null,null,null,null,null,null,null,null,null,null,null,null,null,null,null,null,null,null,null,null,null,null,null,null,null,null,83]
[null,null,null,null,null,null,null,null,null,null,null,null,null,null,null,null,null,null,null,null,null,null,null,null,null,null,null,null,null,null,null,null,null,null,null,null,null,null,null,84]
[null,null,null,null,null,null,null,null,null,null,null,null,null,null,null,null,null,null,null,null,null,null,null,null,null,null,null,null,null,null,null,null,null,null,null,null,null,null,null,85]
[null,null,null,null,null,null,null,null,null,null,null,null,null,null,null,null,null,null,null,null,null,null,null,null,null,null,null,null,null,null,null,null,null,null,null,null,null,null,null,86]
[null,null,null,null,null,null,null,null,null,null,null,null,null,null,null,null,null,null,null,null,null,null,null,null,null,null,null,null,null,null,null,null,null,null,null,null,null,null,null,87]
[null,null,null,null,null,null,null,null,null,null,null,null,null,null,null,null,null,null,null,null,null,null,null,null,null,null,null,null,null,null,null,null,null,null,null,null,null,null,null,88]
[null,null,null,null,null,null,null,null,null,null,null,null,null,null,null,null,null,null,null,null,null,null,null,null,null,null,null,null,null,null,null,null,null,null,null,null,null,null,null,89]
[null,null,null,null,null,null,null,null,null,null,null,null,null,null,null,null,null,null,null,null,null,null,null,null,null,null,null,null,null,null,null,null,null,null,null,null,null,null,null,90]
[null,null,null,null,null,null,null,null,null,null,null,null,null,null,null,null,null,null,null,null,null,null,null,null,null,null,null,null,null,null,null,null,null,null,null,null,null,null,null,91]
[null,null,null,null,null,null,null,null,null,null,null,null,null,null,null,null,null,null,null,null,null,null,null,null,null,null,null,null,null,null,null,null,null,null,null,null,null,null,null,92]
[null,null,null,null,null,null,null,null,null,null,null,null,null,null,null,null,null,null,null,null,null,null,null,null,null,null,null,null,null,null,null,null,null,null,null,null,null,null,null,93]
[null,null,null,null,null,null,null,null,null,null,null,null,null,null,null,null,null,null,null,null,null,null,null,null,null,null,null,null,{"$f":"IF(AND(#REF!<>\"\",O117<>\"\",V34<>\"\",K7<>\"\"),IF(#REF!<>\"Riparian Forest Buffer Meeting § 102.14(b)\",IF(V34<=2,O117*43560*(#REF!/12)*(1-AB96),0),\"\"),\"\")","v":{"$error":"#REF!"}},null,null,null,null,null,null,null,null,null,null,94]
[null,null,null,null,null,null,null,null,null,null,null,null,null,null,null,null,null,null,null,null,null,null,null,null,null,null,null,null,null,null,null,null,null,null,null,null,null,null,null,95]
[null,null,null,null,null,null,null,null,null,null,null,null,null,null,null,null,null,null,null,null,null,null,null,null,null,null,null,null,null,null,null,null,null,null,null,null,null,null,null,96]
[null,null,null,null,null,null,null,null,null,null,null,null,null,null,null,null,null,null,null,null,null,null,null,null,null,null,null,null,null,null,null,null,null,null,null,null,null,null,null,97]
[null,null,null,null,null,null,null,null,null,null,null,null,null,null,null,null,null,null,null,null,null,null,null,null,null,null,null,null,null,null,null,null,null,null,null,null,null,null,null,98]
[null,null,null,null,null,null,null,null,null,null,null,null,null,null,null,null,null,null,null,null,null,null,null,null,null,null,null,null,null,null,null,null,null,null,null,null,null,null,null,99]
[null,null,null,null,null,null,null,null,null,null,null,null,null,null,null,null,null,null,null,null,null,null,null,null,null,null,null,null,null,null,null,null,null,null,null,null,null,null,null,100]
[null,null,null,null,null,null,null,null,null,null,null,null,null,null,null,null,null,null,null,null,null,null,null,null,null,null,null,null,null,null,null,null,null,null,null,null,null,null,null,101]
[null,null,null,null,null,null,null,null,null,null,null,null,null,null,null,null,null,null,null,null,null,null,null,null,null,null,null,null,null,null,null,null,null,null,null,null,null,null,null,102]
[null,null,null,null,null,null,null,null,null,null,null,null,null,null,null,null,null,null,null,null,null,null,null,null,null,null,null,null,null,null,null,null,null,null,null,null,null,null,null,103]
[null,null,null,null,null,null,null,null,null,null,null,null,null,null,null,null,null,null,null,null,null,null,null,null,null,null,null,null,null,null,null,null,null,null,null,null,null,null,null,104]
[null,null,null,null,null,null,null,null,null,null,null,null,null,null,null,null,null,null,null,null,null,null,null,null,null,null,null,null,null,null,null,null,null,null,null,null,null,null,null,105]
[null,null,null,null,null,null,null,null,null,null,null,null,null,null,null,null,null,null,null,null,null,null,null,null,null,null,null,null,null,null,null,null,null,null,null,null,null,null,null,106]
[null,null,null,null,null,null,null,null,null,null,null,null,null,null,null,null,null,null,null,null,null,null,null,null,null,null,null,null,null,null,null,null,null,null,null,null,null,null,null,107]
[null,null,null,null,null,null,null,null,null,null,null,null,null,null,null,null,null,null,null,null,null,null,null,null,null,null,null,null,null,null,null,null,null,null,null,null,null,null,null,108]
[null,null,null,null,null,null,null,null,null,null,null,null,null,null,null,null,null,null,null,null,null,null,null,null,null,null,null,null,null,null,null,null,null,null,null,null,null,null,null,109]
[null,null,null,null,null,null,null,null,null,null,null,null,null,null,null,null,null,null,null,null,null,null,null,null,null,null,null,null,null,null,null,null,null,null,null,null,null,null,null,110]
[null,null,null,null,null,null,null,null,null,null,null,null,null,null,null,null,null,null,null,null,null,null,null,null,null,null,null,null,null,null,null,null,null,null,null,null,null,null,null,111]
[null,null,null,null,null,null,null,null,null,null,null,null,null,null,null,null,null,null,null,null,null,null,null,null,null,null,null,null,null,null,null,null,null,null,null,null,null,null,null,112]
[null,null,null,null,null,null,null,null,null,null,null,null,null,null,null,null,null,null,null,null,null,null,null,null,null,null,null,null,null,null,null,null,null,null,null,null,null,null,null,113]
[null,null,null,null,null,null,null,null,null,null,null,null,null,null,null,null,null,null,null,null,null,null,null,null,null,null,null,null,null,null,null,null,null,null,null,null,null,null,null,114]
[null,null,null,null,null,null,null,null,null,null,null,null,null,null,null,null,null,null,null,null,null,null,null,null,null,null,null,null,null,null,null,null,null,null,null,null,null,null,null,115]
[null,null,null,null,null,null,null,null,null,null,null,null,null,null,null,null,null,null,null,null,null,null,null,null,null,null,null,null,null,null,null,null,null,null,null,null,null,null,null,116]
[null,null,null,null,null,null,null,null,null,null,null,null,null,null,null,null,null,null,null,null,null,null,null,null,null,null,null,null,null,null,null,null,null,null,null,null,null,null,null,117]
[null,null,null,null,null,null,null,null,null,null,null,null,null,null,null,null,null,null,null,null,null,null,null,null,null,null,null,null,null,null,null,null,null,null,null,null,null,null,null,118]
[null,null,null,null,null,null,null,null,null,null,null,null,null,null,null,null,null,null,null,null,null,null,null,null,null,null,null,null,null,null,null,null,null,null,null,null,null,null,null,119]
[null,null,null,null,null,null,null,null,null,null,null,null,null,null,null,null,null,null,null,null,null,null,null,null,null,null,null,null,null,null,null,null,null,null,null,null,null,null,null,120]
[null,null,null,null,null,null,null,null,null,null,null,null,null,null,null,null,null,null,null,null,null,null,null,null,null,null,null,null,null,null,null,null,null,null,null,null,null,null,null,121]
[null,null,null,null,null,null,null,null,null,null,null,null,null,null,null,null,null,null,null,null,null,null,null,null,null,null,null,null,null,null,null,null,null,null,null,null,null,null,null,122]
[null,null,null,null,null,null,null,null,null,null,null,null,null,null,null,null,null,null,null,null,null,null,null,null,null,null,null,null,null,null,null,null,null,null,null,null,null,null,null,123]
[null,null,null,null,null,null,null,null,null,null,null,null,null,null,null,null,null,null,null,null,null,null,null,null,null,null,null,null,null,null,null,null,null,null,null,null,null,null,null,124]
[null,null,null,null,null,null,null,null,null,null,null,null,null,null,null,null,null,null,null,null,null,null,null,null,null,null,null,null,null,null,null,null,null,null,null,null,null,null,null,125]
[null,null,null,null,null,null,null,null,null,null,null,null,null,null,null,null,null,null,null,null,null,null,null,null,null,null,null,null,null,null,null,null,null,null,null,null,null,null,null,126]
[null,null,null,null,null,null,null,null,null,null,null,null,null,null,null,null,null,null,null,null,null,null,null,null,null,null,null,null,null,null,null,null,null,null,null,null,null,null,null,127]
[null,null,null,null,null,null,null,null,null,null,null,null,null,null,null,null,null,null,null,null,null,null,null,null,null,null,null,null,null,null,null,null,null,null,null,null,null,null,null,128]
[null,null,null,null,null,null,null,null,null,null,null,null,null,null,null,null,null,null,null,null,null,null,null,null,null,null,null,null,null,null,null,null,null,null,null,null,null,null,null,129]
[null,null,null,null,null,null,null,null,null,null,null,null,null,null,null,null,null,null,null,null,null,null,null,null,null,null,null,null,null,null,null,null,null,null,null,null,null,null,null,130]
[null,null,null,null,null,null,null,null,null,null,null,null,null,null,null,null,null,null,null,null,null,null,null,null,null,null,null,null,null,null,null,null,null,null,null,null,null,null,null,131]
[null,null,null,null,null,null,null,null,null,null,null,null,null,null,null,null,null,null,null,null,null,null,null,null,null,null,null,null,null,null,null,null,null,null,null,null,null,null,null,132]
[null,null,null,null,null,null,null,null,null,null,null,null,null,null,null,null,null,null,null,null,null,null,null,null,null,null,null,null,null,null,null,null,null,null,null,null,null,null,null,133]
[null,null,null,null,null,null,null,null,null,null,null,null,null,null,null,null,null,null,null,null,null,null,null,null,null,null,null,null,null,null,null,null,null,null,null,null,null,null,null,134]
[null,null,null,null,null,null,null,null,null,null,null,null,null,null,null,null,null,null,null,null,null,null,null,null,null,null,null,null,null,null,null,null,null,null,null,null,null,null,null,135]
[null,null,null,null,null,null,null,null,null,null,null,null,null,null,null,null,null,null,null,null,null,null,null,null,null,null,null,null,null,null,null,null,null,null,null,null,null,null,null,136]
[null,null,null,null,null,null,null,null,null,null,null,null,null,null,null,null,null,null,null,null,null,null,null,null,null,null,null,null,null,null,null,null,null,null,null,null,null,null,null,137]
[null,null,null,null,null,null,null,null,null,null,null,null,null,null,null,null,null,null,null,null,null,null,null,null,null,null,null,null,null,null,null,null,null,null,null,null,null,null,null,138]
[null,null,null,null,null,null,null,null,null,null,null,null,null,null,null,null,null,null,null,null,null,null,null,null,null,null,null,null,null,null,null,null,null,null,null,null,null,null,null,139]
[null,null,null,null,null,null,null,null,null,null,null,null,null,null,null,null,null,null,null,null,null,null,null,null,null,null,null,null,null,null,null,null,null,null,null,null,null,null,null,140]
[null,null,null,null,null,null,null,null,null,null,null,null,null,null,null,null,null,null,null,null,null,null,null,null,null,null,null,null,null,null,null,null,null,null,null,null,null,null,null,141]
[null,null,null,null,null,null,null,null,null,null,null,null,null,null,null,null,null,null,null,null,null,null,null,null,null,null,null,null,null,null,null,null,null,null,null,null,null,null,null,142]
[null,null,null,null,null,null,null,null,null,null,null,null,null,null,null,null,null,null,null,null,null,null,null,null,null,null,null,null,null,null,null,null,null,null,null,null,null,null,null,143]
[null,null,null,null,null,null,null,null,null,null,null,null,null,null,null,null,null,null,null,null,null,null,null,null,null,null,null,null,null,null,null,null,null,null,null,null,null,null,null,144]
[null,null,null,null,null,null,null,null,null,null,null,null,null,null,null,null,null,null,null,null,null,null,null,null,null,null,null,null,null,null,null,null,null,null,null,null,null,null,null,145]
[null,null,null,null,null,null,null,null,null,null,null,null,null,null,null,null,null,null,null,null,null,null,null,null,null,null,null,null,null,null,null,null,null,null,null,null,null,null,null,146]
[null,null,null,null,null,null,null,null,null,null,null,null,null,null,null,null,null,null,null,null,null,null,null,null,null,null,null,null,null,null,null,null,null,null,null,null,null,null,null,147]
[null,null,null,null,null,null,null,null,null,null,null,null,null,null,null,null,null,null,null,null,null,null,null,null,null,null,null,null,null,null,null,null,null,null,null,null,null,null,null,148]
[null,null,null,null,null,null,null,null,null,null,null,null,null,null,null,null,null,null,null,null,null,null,null,null,null,null,null,null,null,null,null,null,null,null,null,null,null,null,null,149]
[null,null,null,null,null,null,null,null,null,null,null,null,null,null,null,null,null,null,null,null,null,null,null,null,null,null,null,null,null,null,null,null,null,null,null,null,null,null,null,150]
[null,null,null,null,null,null,null,null,null,null,null,null,null,null,null,null,null,null,null,null,null,null,null,null,null,null,null,null,null,null,null,null,null,null,null,null,null,null,null,151]
[null,null,null,null,null,null,null,null,null,null,null,null,null,null,null,null,null,null,null,null,null,null,null,null,null,null,null,null,null,null,null,null,null,null,null,null,null,null,null,152]
[null,null,null,null,null,null,null,null,null,null,null,null,null,null,null,null,null,null,null,null,null,null,null,null,null,null,null,null,null,null,null,null,null,null,null,null,null,null,null,153]
[null,null,null,null,null,null,null,null,null,null,null,null,null,null,null,null,null,null,null,null,null,null,null,null,null,null,null,null,null,null,null,null,null,null,null,null,null,null,null,154]
[null,null,null,null,null,null,null,null,null,null,null,null,null,null,null,null,null,null,null,null,null,null,null,null,null,null,null,null,null,null,null,null,null,null,null,null,null,null,null,155]
[null,null,null,null,null,null,null,null,null,null,null,null,null,null,null,null,null,null,null,null,null,null,null,null,null,null,null,null,null,null,null,null,null,null,null,null,null,null,null,156]
[null,null,null,null,null,null,null,null,null,null,null,null,null,null,null,null,null,null,null,null,null,null,null,null,null,null,null,null,null,null,null,null,null,null,null,null,null,null,null,157]
[null,null,null,null,null,null,null,null,null,null,null,null,null,null,null,null,null,null,null,null,null,null,null,null,null,null,null,null,null,null,null,null,null,null,null,null,null,null,null,158]
[null,null,null,null,null,null,null,null,null,null,null,null,null,null,null,null,null,null,null,null,null,null,null,null,null,null,null,null,null,null,null,null,null,null,null,null,null,null,null,159]
[null,null,null,null,null,null,null,null,null,null,null,null,null,null,null,null,null,null,null,null,null,null,null,null,null,null,null,{"$f":"IF(AND(#REF!<>\"\",AB97<>\"\"),IF(#REF!<0.25,1,IF(AB97<=0.1,2,IF(AND(AB97>0.1,AB97<=0.25,#REF!=TRUE),3,IF(AND(AB97>0.1,AB97<=0.25,#REF!=FALSE),4,IF(AND(AB97>0.25,#REF!=TRUE),5,IF(AND(AB97>0.25,#REF!=FALSE),6)))))),\"\")","v":{"$error":"#REF!"}},null,null,null,null,null,null,null,null,null,null,null,160]
[null,null,null,null,null,null,null,null,null,null,null,null,null,null,null,null,null,null,null,null,null,null,null,null,null,null,null,null,null,null,null,null,null,null,null,null,null,null,null,161]
[null,null,null,null,null,null,null,null,null,null,null,null,null,null,null,null,null,null,null,null,null,null,null,null,null,null,null,null,null,null,null,null,null,null,null,null,null,null,null,162]
[null,null,null,null,null,null,null,null,null,null,null,null,null,null,null,null,null,null,null,null,null,null,null,null,null,null,null,null,null,null,null,null,null,null,null,null,null,null,null,163]
[null,null,null,null,null,null,null,null,null,null,null,null,null,null,null,null,null,null,null,null,null,null,null,null,null,null,null,null,null,null,null,null,null,null,null,null,null,null,null,164]
[null,null,null,null,null,null,null,null,null,null,null,null,null,null,null,null,null,null,null,null,null,null,null,null,null,null,null,null,null,null,null,null,null,null,null,null,null,null,null,165]
[null,null,null,null,null,null,null,null,null,null,null,null,null,null,null,null,null,null,null,null,null,null,null,null,null,null,null,null,null,null,null,null,null,null,null,null,null,null,null,166]
[null,null,null,null,null,null,null,null,null,null,null,null,null,null,null,null,null,null,null,null,null,null,null,null,null,null,null,null,null,null,null,null,null,null,null,null,null,null,null,167]
[null,null,null,null,null,null,null,null,null,null,null,null,null,null,null,null,null,null,null,null,null,null,null,null,null,null,null,null,null,null,null,null,null,null,null,null,null,null,null,168]
[null,null,null,null,null,null,null,null,null,null,null,null,null,null,null,null,null,null,null,null,null,null,null,null,null,null,null,null,null,null,null,null,null,null,null,null,null,null,null,169]
[null,null,null,null,null,null,null,null,null,null,null,null,null,null,null,null,null,null,null,null,null,null,null,null,null,null,null,null,null,null,null,null,null,null,null,null,null,null,null,170]
[null,null,null,null,null,null,null,null,null,null,null,null,null,null,null,null,null,null,null,null,null,null,null,null,null,null,null,null,null,null,null,null,null,null,null,null,null,null,null,171]
[null,null,null,null,null,null,null,null,null,null,null,null,null,null,null,null,null,null,null,null,null,null,null,null,null,null,null,null,null,null,null,null,null,null,null,null,null,null,null,172]
[null,null,null,null,null,null,null,null,null,null,null,null,null,null,null,null,null,null,null,null,null,null,null,null,null,null,null,null,null,null,null,null,null,null,null,null,null,null,null,173]
[null,null,null,null,null,null,null,null,null,null,null,null,null,null,null,null,null,null,null,null,null,null,null,null,null,null,null,null,null,null,null,null,null,null,null,null,null,null,null,174]
[null,null,null,null,null,null,null,null,null,null,null,null,null,null,null,null,null,null,null,null,null,null,null,null,null,null,null,null,null,null,null,null,null,null,null,null,null,null,null,175]
[null,null,null,null,null,null,null,null,null,null,null,null,null,null,null,null,null,null,null,null,null,null,null,null,null,null,null,null,null,null,null,null,null,null,null,null,null,null,null,176]
[null,null,null,null,null,null,null,null,null,null,null,null,null,null,null,null,null,null,null,null,null,null,null,null,null,null,null,null,null,null,null,null,null,null,null,null,null,null,null,177]
[null,null,null,null,null,null,null,null,null,null,null,null,null,null,null,null,null,null,null,null,null,null,null,null,null,null,null,null,null,null,null,null,null,null,null,null,null,null,null,178]
[null,null,null,null,null,null,null,null,null,null,null,null,null,null,null,null,null,null,null,null,null,null,null,null,null,null,null,null,null,null,null,null,null,null,null,null,null,null,null,179]
[null,null,null,null,null,null,null,null,null,null,null,null,null,null,null,null,null,null,null,null,null,null,null,null,null,null,null,null,null,null,null,null,null,null,null,null,null,null,null,180]
[null,null,null,null,null,null,null,null,null,null,null,null,null,null,null,null,null,null,null,null,null,null,null,null,null,null,null,null,null,null,null,null,null,null,null,null,null,null,null,181]
[null,null,null,null,null,null,null,null,null,null,null,null,null,null,null,null,null,null,null,null,null,null,null,null,null,null,null,null,null,null,null,null,null,null,null,null,null,null,null,182]
[null,null,null,null,null,null,null,null,null,null,null,null,null,null,null,null,null,null,null,null,null,null,null,null,null,null,null,null,null,null,null,null,null,null,null,null,null,null,null,183]
[null,null,null,null,null,null,null,null,null,null,null,null,null,null,null,null,null,null,null,null,null,null,null,null,null,null,null,null,null,null,null,null,null,null,null,null,null,null,null,184]
[null,null,null,null,null,null,null,null,null,null,null,null,null,null,null,null,null,null,null,null,null,null,null,null,null,null,null,null,null,null,null,null,null,null,null,null,null,null,null,185]
[null,null,null,null,null,null,null,null,null,null,null,null,null,null,null,null,null,null,null,null,null,null,null,null,null,null,null,null,null,null,null,null,null,null,null,null,null,null,null,186]
[null,null,null,null,null,null,null,null,null,null,null,null,null,null,null,null,null,null,null,null,null,null,null,null,null,null,null,null,null,null,null,null,null,null,null,null,null,null,null,187]
[null,null,null,null,null,null,null,null,null,null,null,null,null,null,null,null,null,null,null,null,null,null,null,null,null,null,null,null,null,null,null,null,null,null,null,null,null,null,null,188]
[null,null,null,null,null,null,null,null,null,null,null,null,null,null,null,null,null,null,null,null,null,null,null,null,null,null,null,null,null,null,null,null,null,null,null,null,null,null,null,189]
[null,null,null,null,null,null,null,null,null,null,null,null,null,null,null,null,null,null,null,null,null,null,null,null,null,null,null,null,null,null,null,null,null,null,null,null,null,null,null,190]
[null,null,null,null,null,null,null,null,null,null,null,null,null,null,null,null,null,null,null,null,null,null,null,null,null,null,null,null,null,null,null,null,null,null,null,null,null,null,null,191]
[null,null,null,null,null,null,null,null,null,null,null,null,null,null,null,null,null,null,null,null,null,null,null,null,null,null,null,null,null,null,null,null,null,null,null,null,null,null,null,192]
[null,null,null,null,null,null,null,null,null,null,null,null,null,null,null,null,null,null,null,null,null,null,null,null,null,null,null,null,null,null,null,null,null,null,null,null,null,null,null,193]
[null,null,null,null,null,null,null,null,null,null,null,null,null,null,null,null,null,null,null,null,null,null,null,null,null,null,null,null,null,null,null,null,null,null,null,null,null,null,null,194]
[null,null,null,null,null,null,null,null,null,null,null,null,null,null,null,null,null,null,null,null,null,null,null,null,null,null,null,null,null,null,null,null,null,null,null,null,null,null,null,195]
[null,null,null,null,null,null,null,null,null,null,null,null,null,null,null,null,null,null,null,null,null,null,null,null,null,null,null,null,null,null,null,null,null,null,null,null,null,null,null,196]
[null,null,null,null,null,null,null,null,null,null,null,null,null,null,null,null,null,null,null,null,null,null,null,null,null,null,null,null,null,null,null,null,null,null,null,null,null,null,null,197]
[null,null,null,null,null,null,null,null,null,null,null,null,null,null,null,null,null,null,null,null,null,null,null,null,null,null,null,null,null,null,null,null,null,null,null,null,null,null,null,198]
[null,null,null,null,null,null,null,null,null,null,null,null,null,null,null,null,null,null,null,null,null,null,null,null,null,null,null,null,null,null,null,null,null,null,null,null,null,null,null,199]
[null,null,null,null,null,null,null,null,null,null,null,null,null,null,null,null,null,null,null,null,null,null,null,null,null,null,null,null,null,null,null,null,null,null,null,null,null,null,null,200]
[null,null,null,null,null,null,null,null,null,null,null,null,null,null,null,null,null,null,null,null,null,null,null,null,null,null,null,null,null,null,null,null,null,null,null,null,null,null,null,201]
[null,null,null,null,null,null,null,null,null,null,null,null,null,null,null,null,null,null,null,null,null,null,null,null,null,null,null,null,null,null,null,null,null,null,null,null,null,null,null,202]
[null,null,null,null,null,null,null,null,null,null,null,null,null,null,null,null,null,null,null,null,null,null,null,null,null,null,null,null,null,null,null,null,null,null,null,null,null,null,null,203]
[null,null,null,null,null,null,null,null,null,null,null,null,null,null,null,null,null,null,null,null,null,null,null,null,null,null,null,null,null,null,null,null,null,null,null,null,null,null,null,204]
[null,null,null,null,null,null,null,null,null,null,null,null,null,null,null,null,null,null,null,null,null,null,null,null,null,null,null,null,null,null,null,null,null,null,null,null,null,null,null,205]
[null,null,null,null,null,null,null,null,null,null,null,null,null,null,null,null,null,null,null,null,null,null,null,null,null,null,null,null,null,null,null,null,null,null,null,null,null,null,null,206]
[null,null,null,null,null,null,null,null,null,null,null,null,null,null,null,null,null,null,null,null,null,null,null,null,null,null,null,null,null,null,null,null,null,null,null,null,null,null,null,207]
[null,null,null,null,null,null,null,null,null,null,null,null,null,null,null,null,null,null,null,null,null,null,null,null,null,null,null,null,null,null,null,null,null,null,null,null,null,null,null,208]
[null,null,null,null,null,null,null,null,null,null,null,null,null,null,null,null,null,null,null,null,null,null,null,null,null,null,null,null,null,null,null,null,null,null,null,null,null,null,null,209]
[null,null,null,null,null,null,null,null,null,null,null,null,null,null,null,null,null,null,null,null,null,null,null,null,null,null,null,null,null,null,null,null,null,null,null,null,null,null,null,210]
[null,null,null,null,null,null,null,null,null,null,null,null,null,null,null,null,null,null,null,null,null,null,null,null,null,null,null,null,null,null,null,null,null,null,null,null,null,null,null,211]
[null,null,null,null,null,null,null,null,null,null,null,null,null,null,null,null,null,null,null,null,null,null,null,null,null,null,null,null,null,null,null,null,null,null,null,null,null,null,null,212]
[null,null,null,null,null,null,null,null,null,null,null,null,null,null,null,null,null,null,null,null,null,null,null,null,null,null,null,null,null,null,null,null,null,null,null,null,null,null,null,213]
[null,null,null,null,null,null,null,null,null,null,null,null,null,null,null,null,null,null,null,null,null,null,null,null,null,null,null,null,null,null,null,null,null,null,null,null,null,null,null,214]
[null,null,null,null,null,null,null,null,null,null,null,null,null,null,null,null,null,null,null,null,null,null,null,null,null,null,null,null,null,null,null,null,null,null,null,null,null,null,null,215]
[null,null,null,null,null,null,null,null,null,null,null,null,null,null,null,null,null,null,null,null,null,null,null,null,null,null,null,null,null,null,null,null,null,null,null,null,null,null,null,216]
[null,null,null,null,null,null,null,null,null,null,null,null,null,null,null,null,null,null,null,null,null,null,null,null,null,null,null,null,null,null,null,null,null,null,null,null,null,null,null,217]
[null,null,null,null,null,null,null,null,null,null,null,null,null,null,null,null,null,null,null,null,null,null,null,null,null,null,null,null,null,null,null,null,null,null,null,null,null,null,null,218]
[null,null,null,null,null,null,null,null,null,null,null,null,null,null,null,null,null,null,null,null,null,null,null,null,null,null,null,null,null,null,null,null,null,null,null,null,null,null,null,219]
[null,null,null,null,null,null,null,null,null,null,null,null,null,null,null,null,null,null,null,null,null,null,null,null,null,null,null,null,null,null,null,null,null,null,null,null,null,null,null,220]
[null,null,null,null,null,null,null,null,null,null,null,null,null,null,null,null,null,null,null,null,null,null,null,null,null,null,null,null,null,null,null,null,null,null,null,null,null,null,null,221]
[null,null,null,null,null,null,null,null,null,null,null,null,null,null,null,null,null,null,null,null,null,null,null,null,null,null,null,null,null,null,null,null,null,null,null,null,null,null,null,222]
[null,null,null,null,null,null,null,null,null,null,null,null,null,null,null,null,null,null,null,null,null,null,null,null,null,null,null,null,null,null,null,null,null,null,null,null,null,null,null,223]
[null,null,null,null,null,null,null,null,null,null,null,null,null,null,null,null,null,null,null,null,null,null,null,null,null,null,null,null,null,null,null,null,null,null,null,null,null,null,null,224]
[null,null,null,null,null,null,null,null,null,null,null,null,null,null,null,null,null,null,null,null,null,null,null,null,null,null,null,null,null,null,null,null,null,null,null,null,null,null,null,225]
[null,null,null,null,null,null,null,null,null,null,null,null,null,null,null,null,null,null,null,null,null,null,null,null,null,null,null,null,null,null,null,null,null,null,null,null,null,null,null,226]
[null,null,null,null,null,null,null,null,null,null,null,null,null,null,null,null,null,null,null,null,null,null,null,null,null,null,null,null,null,null,null,null,null,null,null,null,null,null,null,227]
[null,null,null,null,null,null,null,null,null,null,null,null,null,null,null,null,null,null,null,null,null,null,null,null,null,null,null,null,null,null,null,null,null,null,null,null,null,null,null,228]
[null,null,null,null,null,null,null,null,null,null,null,null,null,null,null,null,null,null,null,null,null,null,null,null,null,null,null,null,null,null,null,null,null,null,null,null,null,null,null,229]
[null,null,null,null,null,null,null,null,null,null,null,null,null,null,null,null,null,null,null,null,null,null,null,null,null,null,null,null,null,null,null,null,null,null,null,null,null,null,null,230]
[null,null,null,null,null,null,null,null,null,null,null,null,null,null,null,null,null,null,null,null,null,null,null,null,null,null,null,null,null,null,null,null,null,null,null,null,null,null,null,231]
[null,null,null,null,null,null,null,null,null,null,null,null,null,null,null,null,null,null,null,null,null,null,null,null,null,null,null,null,null,null,null,null,null,null,null,null,null,null,null,232]
[null,null,null,null,null,null,null,null,null,null,null,null,null,null,null,null,null,null,null,null,null,null,null,null,null,null,null,null,null,null,null,null,null,null,null,null,null,null,null,233]
[null,null,null,null,null,null,null,null,null,null,null,null,null,null,null,null,null,null,null,null,null,null,null,null,null,null,null,null,null,null,null,null,null,null,null,null,null,null,null,234]
[null,null,null,null,null,null,null,null,null,null,null,null,null,null,null,null,null,null,null,null,null,null,null,null,null,null,null,null,null,null,null,null,null,null,null,null,null,null,null,235]
[null,null,null,null,null,null,null,null,null,null,null,null,null,null,null,null,null,null,null,null,null,null,null,null,null,null,null,null,null,null,null,null,null,null,null,null,null,null,null,236]
[null,null,null,null,null,null,null,null,null,null,null,null,null,null,null,null,null,null,null,null,null,null,null,null,null,null,null,null,null,null,null,null,null,null,null,null,null,null,null,237]
[null,null,null,null,null,null,null,null,null,null,null,null,null,null,null,null,null,null,null,null,null,null,null,null,null,null,null,null,null,null,null,null,null,null,null,null,null,null,null,238]
[null,null,null,null,null,null,null,null,null,null,null,null,null,null,null,null,null,null,null,null,null,null,null,null,null,null,null,null,null,null,null,null,null,null,null,null,null,null,null,239]
[null,null,null,null,null,null,null,null,null,null,null,null,null,null,null,null,null,null,null,null,null,null,null,null,null,null,null,null,null,null,null,null,null,null,null,null,null,null,null,240]
[null,null,null,null,null,null,null,null,null,null,null,null,null,null,null,null,null,null,null,null,null,null,null,null,null,null,null,null,null,null,null,null,null,null,null,null,null,null,null,241]
[null,null,null,null,null,null,null,null,null,null,null,null,null,null,null,null,null,null,null,null,null,null,null,null,null,null,null,null,null,null,null,null,null,null,null,null,null,null,null,242]
[null,null,null,null,null,null,null,null,null,null,null,null,null,null,null,null,null,null,null,null,null,null,null,null,null,null,null,null,null,null,null,null,null,null,null,null,null,null,null,243]
[null,null,null,null,null,null,null,null,null,null,null,null,null,null,null,null,null,null,null,null,null,null,null,null,null,null,null,null,null,null,null,null,null,null,null,null,null,null,null,244]
[null,null,null,null,null,null,null,null,null,null,null,null,null,null,null,null,null,null,null,null,null,null,null,null,null,null,null,null,null,null,null,null,null,null,null,null,null,null,null,245]
[null,null,null,null,null,null,null,null,null,null,null,null,null,null,null,null,null,null,null,null,null,null,null,null,null,null,null,null,null,null,null,null,null,null,null,null,null,null,null,246]
[null,null,null,null,null,null,null,null,null,null,null,null,null,null,null,null,null,null,null,null,null,null,null,null,null,null,null,null,null,null,null,null,null,null,null,null,null,null,null,247]
[null,null,null,null,null,null,null,null,null,null,null,null,null,null,null,null,null,null,null,null,null,null,null,null,null,null,null,null,null,null,null,null,null,null,null,null,null,null,null,248]
[null,null,null,null,null,null,null,null,null,null,null,null,null,null,null,null,null,null,null,null,null,null,null,null,null,null,null,null,null,null,null,null,null,null,null,null,null,null,null,249]
[null,null,null,null,null,null,null,null,null,null,null,null,null,null,null,null,null,null,null,null,null,null,null,null,null,null,null,null,null,null,null,null,null,null,null,null,null,null,null,250]

{"sheet":"Reference","index":1,"n_rows":65,"n_cols":115,"rows_kept":65,"cut":false,"hidden":true,"merged":[]}
["Pre_LandCover","A","B","C","D","Impervious","Soils","SCM_Cover","A","B","C","D","CN","Soil_Type","Clay (assumes 30% sand, 50% clay), OM 1%",null,null,null,null,null,null,null,"Clay Loam (assumes 33% sand, 34% clay), OM 1%",null,null,null,null,null,null,null,"Loam (assumes 42% sand, 18% clay), OM 1%",null,null,null,null,null,null,null,"Loamy Sand (assumes 82% sand, 6% clay), OM 1%",null,null,null,null,null,null,null,"Sand (assumes 92% sand, 5% clay), OM 1%",null,null,null,null,null,null,null,"Sandy Clay (assumes 52% sand, 42% clay), OM 1%",null,null,null,null,null,null,null,"Sandy Clay Loam (assumes 60% sand, 28% clay), OM 1%",null,null,null,null,null,null,null,"Sandy Loam (assumes 65% sand, 10% clay), OM 1%",null,null,null,null,null,null,null,"Silt (assumes 7% sand, 6% clay), OM 1%",null,null,null,null,null,null,null,"Silty Clay (assumes 7% sand, 47% clay), OM 1%",null,null,null,null,null,null,null,"Silty Clay Loam (assumes 10% sand, 34% clay), OM 1%",null,null,null,null,null,null,null,"Silty Loam (assumes 20% sand, 20% clay), OM 1%",null,null,null,null,null,null,null,"Ch102_LandCover","A","B","C","D"]
["Impervious Areas: Paved Parking Lots, Roofs, Driveways, Etc. (Excluding ROW)",98,98,98,98,"Y","A","Meadow-Continuous Grass, Protected from Grazing and Generally Mowed for Hay",30,58,71,78,40,"Clay","OM","Bulk Density","Compaction","Compact_Desc","Wilting Point (%)","Field Capacity (%)","Saturation (%)",null,"OM","Bulk Density","Compaction","Compact_Desc","Wilting Point (%)","Field Capacity (%)","Saturation (%)",null,"OM","Bulk Density","Compaction","Compaction_Desc","Wilting Point (%)","Field Capacity (%)","Saturation (%)",null,"OM","Bulk Density","Compaction","Compaction_Desc","Wilting Point (%)","Field Capacity (%)","Saturation (%)",null,"OM","Bulk Density","Compaction","Compaction_Desc","Wilting Point (%)","Field Capacity (%)","Saturation (%)",null,"OM","Bulk Density","Compaction","Compaction_Desc","Wilting Point (%)","Field Capacity (%)","Saturation (%)",null,"OM","Bulk Density","Compaction","Compaction_Desc","Wilting Point (%)","Field Capacity (%)","Saturation (%)",null,"OM","Bulk Density","Compaction","Compaction_Desc","Wilting Point (%)","Field Capacity (%)","Saturation (%)",null,"OM","Bulk Density","Compaction","Compaction_Desc","Wilting Point (%)","Field Capacity (%)","Saturation (%)",null,"OM","Bulk Density","Compaction","Compaction_Desc","Wilting Point (%)","Field Capacity (%)","Saturation (%)",null,"OM","Bulk Density","Compaction","Compaction_Desc","Wilting Point (%)","Field Capacity (%)","Saturation (%)",null,"OM","Bulk Density","Compaction","Compaction_Desc","Wilting Point (%)","Field Capacity (%)","Saturation (%)",null,"Open Space (Lawns, Parks, Golf Courses, Cemeteries, Etc.) - Poor Condition (Grass Cover < 50%)",68,79,86,89]
["Impervious Areas: Streets and Roads - Paved; Curbs and Storm Sewers (Excluding ROW)",98,98,98,98,"Y","B","Woods (Good Condition)",30,55,70,77,41,"Clay Loam",1,85.67,1,"Normal",29.8,42.1,48.2,null,1,91.6,1,"Normal",20.7,34.200000000000003,44.6,null,1,96.76,1,"Normal",11.6,24.9,41.5,null,1,95.38,1,"Normal",4.0999999999999996,10,42.3,null,1,94.11,1,"Normal",3.3,7.3,43.1,null,1,94.19,1,"Normal",25.5,36.4,43.1,null,1,97.89,1,"Normal",17.399999999999999,26.9,40.799999999999997,null,1,97.59,1,"Normal",6.7,15.8,41,null,1,96.89,1,"Normal",5.3,29.5,41.4,null,1,76.64,1,"Normal",27.8,41.3,54.9,null,1,86.46,1,"Normal",20.6,37.4,47.7,null,1,93.38,1,"Normal",12.9,30.6,43.6,null,"Open Space (Lawns, Parks, Golf Courses, Cemeteries, Etc.) - Fair Condition (Grass Cover 50% to 75%)",49,69,79,84]
["Impervious Areas: Streets and Roads - Paved; Open Ditches (Including ROW)",83,89,92,93,"Y","C","Open Space (Lawns, Parks, Golf Courses, Cemeteries, Etc.) - Good Condition (Grass Cover > 75%)",39,61,74,80,42,"Loam",1,89.82,1.05,"Dense",29.8,41.6,45.7,null,1,100.76,1.1000000000000001,"Dense",20.7,33.1,39.1,null,1,106.11,1.1000000000000001,"Dense",11.6,23.8,35.9,null,1,105.23,1.1000000000000001,"Dense",4.0999999999999996,8.8000000000000007,36.4,null,1,103.52,1.1000000000000001,"Dense",3.3,6.1,37.4,null,1,98.9,1.05,"Dense",25.5,35.799999999999997,40.200000000000003,null,1,107.68,1.1000000000000001,"Dense",17.399999999999999,25.7,34.9,null,1,107.35,1.1000000000000001,"Dense",6.7,14.6,35.1,null,1,106.58,1.1000000000000001,"Dense",5.3,28.3,35.6,null,1,82.11,1.1000000000000001,"Dense",27.8,40.4,50.4,null,1,95.11,1.1000000000000001,"Dense",20.6,36.299999999999997,42.5,null,1,102.72,1.1000000000000001,"Dense",12.9,29.5,37.9,null,"Open Space (Lawns, Parks, Golf Courses, Cemeteries, Etc.) - Good Condition (Grass Cover > 75%)",39,61,74,80]
["Impervious Areas: Streets and Roads - Gravel (Including ROW)",76,85,89,91,"Y","D",null,null,null,null,null,43,"Loamy Sand",1,94.23,1.1000000000000001,"Hard",29.8,41.1,43,null,1,105.34,1.1499999999999999,"Hard",20.7,32.5,36.299999999999997,null,1,115.76,1.2,"Hard",11.6,22.6,30,null,1,114.8,1.2,"Hard",4.0999999999999996,7.6,30.6,null,1,112.93,1.2,"Hard",3.3,5,31.7,null,1,103.61,1,"Hard",25.5,35.299999999999997,37.4,null,1,117.47,1.2,"Hard",17.399999999999999,24.5,29,null,1,117.11,1.2,"Hard",6.7,13.4,29.2,null,1,116.27,1.2,"Hard",5.3,27.2,29.7,null,1,89.57,1.2,"Hard",27.8,39.5,45.9,null,1,103.75,1.2,"Hard",20.6,35.299999999999997,37.299999999999997,null,1,112.06,1.2,"Hard",12.9,28.4,32.299999999999997,null,"Impervious Areas: Paved Parking Lots, Roofs, Driveways, Etc. (Excluding ROW)",98,98,98,98]
["Impervious Areas: Streets and Roads - Dirt (Including ROW)",72,82,87,89,"Y","N/A",null,null,null,null,null,44,"Sand",1,98.36,1.1499999999999999,"Severe",29.8,40,40.5,null,1,109.92,1.2,"Severe",20.7,31.9,33.6,null,1,125.41,1.3,"Severe",11.6,21.5,24.2,null,1,124.37,1.3,"Severe",4.0999999999999996,6.4,24.8,null,1,122.34,1.3,"Severe",3.3,3.9,26.1,null,1,107.19,1.1399999999999999,"Severe",25.5,34.700000000000003,35.200000000000003,null,1,125.99,1.3,"Severe",17.399999999999999,23.3,23.8,null,1,126.86,1.3,"Severe",6.7,12.3,23.3,null,1,121.61,1.3,"Severe",5.3,26,26.5,null,1,97.04,1.3,"Severe",27.8,38.6,41.3,null,1,107.14,1.25,"Severe",20.6,34.700000000000003,35.200000000000003,null,1,119.56,1.3,"Severe",12.9,27.2,27.7,null,"Impervious Areas: Streets and Roads - Paved; Curbs and Storm Sewers (Excluding ROW)",98,98,98,98]
[null,null,null,null,null,null,null,null,null,null,null,null,45,"Sandy Clay","Clay (assumes 30% sand, 50% clay), OM 2%",null,null,null,null,null,null,null,"Clay Loam (assumes 33% sand, 34% clay), OM 2%",null,null,null,null,null,null,null,"Loam (assumes 42% sand, 18% clay), OM 2%",null,null,null,null,null,null,null,"Loamy Sand (assumes 82% sand, 6% clay), OM 2%",null,null,null,null,null,null,null,"Sand (assumes 92% sand, 5% clay), OM 2%",null,null,null,null,null,null,null,"Sandy Clay (assumes 52% sand, 42% clay), OM 2%",null,null,null,null,null,null,null,"Sandy Clay Loam (assumes 60% sand, 28% clay), OM 2%",null,null,null,null,null,null,null,"Sandy Loam (assumes 65% sand, 10% clay), OM 2%",null,null,null,null,null,null,null,"Silt (assumes 7% sand, 6% clay), OM 2%",null,null,null,null,null,null,null,"Silty Clay (assumes 7% sand, 47% clay), OM 2%",null,null,null,null,null,null,null,"Silty Clay Loam (assumes 10% sand, 34% clay), OM 2%",null,null,null,null,null,null,null,"Silty Loam (assumes 20% sand, 20% clay), OM 2%",null,null,null,null,null,null,null,"Impervious Areas: Streets and Roads - Paved; Open Ditches (Including ROW)",83,89,92,93]
[null,null,null,null,null,null,null,null,null,null,null,null,46,"Sandy Clay Loam","OM","Bulk Density","Compaction","Compact_Desc","Wilting Point (%)","Field Capacity (%)","Saturation (%)",null,"OM","Bulk Density","Compaction","Compact_Desc","Wilting Point (%)","Field Capacity (%)","Saturation (%)",null,"OM","Bulk Density","Compaction","Compaction_Desc","Wilting Point (%)","Field Capacity (%)","Saturation (%)",null,"OM","Bulk Density","Compaction","Compaction_Desc","Wilting Point (%)","Field Capacity (%)","Saturation (%)",null,"OM","Bulk Density","Compaction","Compaction_Desc","Wilting Point (%)","Field Capacity (%)","Saturation (%)",null,"OM","Bulk Density","Compaction","Compaction_Desc","Wilting Point (%)","Field Capacity (%)","Saturation (%)",null,"OM","Bulk Density","Compaction","Compaction_Desc","Wilting Point (%)","Field Capacity (%)","Saturation (%)",null,"OM","Bulk Density","Compaction","Compaction_Desc","Wilting Point (%)","Field Capacity (%)","Saturation (%)",null,"OM","Bulk Density","Compaction","Compaction_Desc","Wilting Point (%)","Field Capacity (%)","Saturation (%)",null,"OM","Bulk Density","Compaction","Compaction_Desc","Wilting Point (%)","Field Capacity (%)","Saturation (%)",null,"OM","Bulk Density","Compaction","Compaction_Desc","Wilting Point (%)","Field Capacity (%)","Saturation (%)",null,"OM","Bulk Density","Compaction","Compaction_Desc","Wilting Point (%)","Field Capacity (%)","Saturation (%)",null,"Impervious Areas: Streets and Roads - Gravel (Including ROW)",76,85,89,91]
[null,null,null,null,null,null,null,null,null,null,null,null,47,"Sandy Loam",2,85.04,1,"Normal",29.9,42,48.6,null,2,88.8,1,"Normal",21.1,34.700000000000003,46.3,null,2,91.96,1,"Normal",12.3,26.1,44.4,null,2,91.76,1,"Normal",5.0999999999999996,11.4,44.5,null,2,94.11,1,"Normal",3.3,7.3,43.1,null,2,93.14,1,"Normal",25.8,36.799999999999997,43.7,null,2,95.31,1,"Normal",18,27.9,42.4,null,2,97.59,1,"Normal",6.7,15.8,41,null,2,89.42,1,"Normal",6,30.9,46,null,2,78.319999999999993,1,"Normal",27.7,41.7,52.7,null,2,82.86,1,"Normal",20.9,37.700000000000003,49.9,null,2,88.25,1,"Normal",13.4,31.6,46.7,null,"Impervious Areas: Streets and Roads - Dirt (Including ROW)",72,82,87,89]
[null,null,null,null,null,null,null,null,null,null,null,null,48,"Silt",2,89.29,1.05,"Dense",29.9,41.5,46,null,2,97.68,1.1000000000000001,"Dense",21.1,33.700000000000003,41,null,2,101.16,1.1000000000000001,"Dense",12.3,25,38.9,null,2,100.94,1.1000000000000001,"Dense",5.0999999999999996,10.199999999999999,39,null,2,103.52,1.1000000000000001,"Dense",3.3,6.1,37.4,null,2,97.79,1.05,"Dense",25.8,36.299999999999997,30.9,null,2,104.85,1.1000000000000001,"Dense",18,26.7,36.6,null,2,107.35,1.1000000000000001,"Dense",6.7,14.6,35.1,null,2,98.36,1.1000000000000001,"Dense",6,29.8,40.5,null,2,86.16,1.1000000000000001,"Dense",27.7,40.700000000000003,47.9,null,2,91.14,1.1000000000000001,"Dense",20.9,36.700000000000003,44.9,null,2,97.07,1.1000000000000001,"Dense",13.4,30.5,41.3,null,"Impervious Areas: Commercial",98,98,98,98]
[null,null,null,null,null,null,null,null,null,null,null,null,49,"Silty Clay",2,93.59,1.1000000000000001,"Hard",29.9,41,43.4,null,2,102.12,1.1499999999999999,"Hard",21.1,33.1,38.299999999999997,null,2,110.36,1.2,"Hard",12.3,23.9,33.299999999999997,null,2,110.12,1.2,"Hard",5.0999999999999996,9.1,33.4,null,2,112.93,1.2,"Hard",3.3,5,31.7,null,2,102.45,1,"Hard",25.8,35.700000000000003,38.1,null,2,114.38,1.2,"Hard",18,25.6,30.9,null,2,117.11,1.2,"Hard",6.7,13.4,29.2,null,2,107.3,1.2,"Hard",6,28.7,35.1,null,2,93.99,1.2,"Hard",27.7,39.799999999999997,43.2,null,2,99.43,1.2,"Hard",20.9,35.700000000000003,39.9,null,2,105.9,1.2,"Hard",13.4,29.5,36,null,"Impervious Areas: Industrial",98,98,98,98]
[null,null,null,null,null,null,null,null,null,null,null,null,50,"Silty Clay Loam",2,98.05,1.1499999999999999,"Severe",29.9,40.200000000000003,40.700000000000003,null,2,106.56,1.2,"Severe",21.1,32.6,35.6,null,2,119.55,1.3,"Severe",12.3,22.8,27.7,null,2,119.29,1.3,"Severe",5.0999999999999996,8,27.9,null,2,122.34,1.3,"Severe",3.3,3.9,26.1,null,2,106.46,1.1399999999999999,"Severe",25.8,35.200000000000003,35.700000000000003,null,2,123.91,1.3,"Severe",18,24.4,25.1,null,2,126.86,1.3,"Severe",6.7,12.3,23.3,null,2,116.24,1.3,"Severe",6,27.7,29.7,null,2,100.35,1.3,"Severe",27.7,38.799999999999997,39.299999999999997,null,2,103.57,1.25,"Severe",20.9,35.200000000000003,37.4,null,2,114.72,1.3,"Severe",13.4,28.4,30.7,null,"Impervious Areas: Institutional ",98,98,98,98]
[null,null,null,null,null,null,null,null,null,null,null,null,51,"Silty Loam","Clay (assumes 30% sand, 50% clay), OM 4%",null,null,null,null,null,null,null,"Clay Loam (assumes 33% sand, 34% clay), OM 4%",null,null,null,null,null,null,null,"Loam (assumes 42% sand, 18% clay), OM 4%",null,null,null,null,null,null,null,"Loamy Sand (assumes 82% sand, 6% clay), OM 4%",null,null,null,null,null,null,null,"Sand (assumes 92% sand, 5% clay), OM 4%",null,null,null,null,null,null,null,"Sandy Clay (assumes 52% sand, 42% clay), OM 4%",null,null,null,null,null,null,null,"Sandy Clay Loam (assumes 60% sand, 28% clay), OM 4%",null,null,null,null,null,null,null,"Sandy Loam (assumes 65% sand, 10% clay), OM 4%",null,null,null,null,null,null,null,"Silt (assumes 7% sand, 6% clay), OM 4%",null,null,null,null,null,null,null,"Silty Clay (assumes 7% sand, 47% clay), OM 4%",null,null,null,null,null,null,null,"Silty Clay Loam (assumes 10% sand, 34% clay), OM 4%",null,null,null,null,null,null,null,"Silty Loam (assumes 20% sand, 20% clay), OM 4%",null,null,null,null,null,null,null,"Impervious Areas: Commercial Roof",98,98,98,98]
[null,null,null,null,null,null,null,null,null,null,null,null,52,null,"OM","Bulk Density","Compaction","Compact_Desc","Wilting Point (%)","Field Capacity (%)","Saturation (%)",null,"OM","Bulk Density","Compaction","Compact_Desc","Wilting Point (%)","Field Capacity (%)","Saturation (%)",null,"OM","Bulk Density","Compaction","Compaction_Desc","Wilting Point (%)","Field Capacity (%)","Saturation (%)",null,"OM","Bulk Density","Compaction","Compaction_Desc","Wilting Point (%)","Field Capacity (%)","Saturation (%)",null,"OM","Bulk Density","Compaction","Compaction_Desc","Wilting Point (%)","Field Capacity (%)","Saturation (%)",null,"OM","Bulk Density","Compaction","Compaction_Desc","Wilting Point (%)","Field Capacity (%)","Saturation (%)",null,"OM","Bulk Density","Compaction","Compaction_Desc","Wilting Point (%)","Field Capacity (%)","Saturation (%)",null,"OM","Bulk Density","Compaction","Compaction_Desc","Wilting Point (%)","Field Capacity (%)","Saturation (%)",null,"OM","Bulk Density","Compaction","Compaction_Desc","Wilting Point (%)","Field Capacity (%)","Saturation (%)",null,"OM","Bulk Density","Compaction","Compaction_Desc","Wilting Point (%)","Field Capacity (%)","Saturation (%)",null,"OM","Bulk Density","Compaction","Compaction_Desc","Wilting Point (%)","Field Capacity (%)","Saturation (%)",null,"OM","Bulk Density","Compaction","Compaction_Desc","Wilting Point (%)","Field Capacity (%)","Saturation (%)",null,"Impervious Areas: Residential Roof",98,98,98,98]
[null,null,null,null,null,null,null,null,null,null,null,null,53,null,4,83.73,1,"Normal",30.1,41.8,49.4,null,4,83.18,1,"Normal",21.8,35.9,49.7,null,4,82.86,1,"Normal",13.6,28.5,49.9,null,4,83.09,1,"Normal",7.3,14.4,49.4,null,4,83.43,1,"Normal",6.7,11.7,49.6,null,4,91.01,1,"Normal",26.6,37.700000000000003,45,null,4,90.09,1,"Normal",19.2,29.8,45.5,null,4,84.28,1,"Normal",9.4,20.100000000000001,49.1,null,4,74.34,1,"Normal",7.2,33.799999999999997,55.1,null,4,74.64,1,"Normal",27.8,41.3,54.9,null,4,75.650000000000006,1,"Normal",21.3,38.5,54.3,null,4,77.92,1,"Normal",14.4,33.6,52.9,null,"Fallow - Bare Soil",77,86,91,94]
[null,null,null,null,null,null,null,null,null,null,null,null,54,null,4,87.92,1.05,"Dense",30.1,41.3,46.9,null,4,91.49,1.1000000000000001,"Dense",21.8,34.9,44.7,null,4,91.15,1.1000000000000001,"Dense",13.6,27.5,44.9,null,4,92.06,1.1000000000000001,"Dense",7.3,13.4,44.3,null,4,91.78,1.1000000000000001,"Dense",6.7,10.7,44.5,null,4,95.56,1.05,"Dense",26.6,37.1,42.2,null,4,99.1,1.1000000000000001,"Dense",19.2,28.7,40.1,null,4,92.71,1.1000000000000001,"Dense",9.4,19.100000000000001,44,null,4,81.77,1.1000000000000001,"Dense",7.2,32.9,50.6,null,4,82.11,1.1000000000000001,"Dense",27.8,40.4,50.4,null,4,83.21,1.1000000000000001,"Dense",21.3,37.6,49.7,null,4,85.71,1.1000000000000001,"Dense",14.4,32.6,48.2,null,"Fallow - Crop Residue Cover (Poor Condition)",76,85,90,93]
[null,null,null,null,null,null,null,null,null,null,null,null,55,null,4,92.11,1.1000000000000001,"Hard",30.1,40.799999999999997,44.3,null,4,95.65,1.1499999999999999,"Hard",21.8,34.4,42.2,null,4,99.43,1.2,"Hard",13.6,26.5,39.9,null,4,100.43,1.2,"Hard",7.3,12.4,39.299999999999997,null,4,100.12,1.2,"Hard",6.7,9.6999999999999993,39.5,null,4,100.12,1,"Hard",26.6,36.6,39.5,null,4,108.11,1.2,"Hard",19.2,27.6,34.6,null,4,101.14,1.2,"Hard",9.4,18.100000000000001,38.9,null,4,89.21,1.2,"Hard",7.2,32,46.1,null,4,89.57,1.2,"Hard",27.8,39.5,45.9,null,4,90.78,1.2,"Hard",21.3,36.700000000000003,45.1,null,4,93.5,1.2,"Hard",14.4,31.7,43.5,null,"Fallow - Crop Residue Cover (Good Condition)",74,83,88,90]
[null,null,null,null,null,null,null,null,null,null,null,null,56,null,4,96.29,1.1499999999999999,"Severe",30.1,40.299999999999997,41.8,null,4,99.81,1.2,"Severe",21.8,33.9,39.700000000000003,null,4,107.72,1.3,"Severe",13.6,25.5,34.9,null,4,108.8,1.3,"Severe",7.3,11.4,34.200000000000003,null,4,108.46,1.3,"Severe",6.7,8.6999999999999993,34.4,null,4,103.76,1.1399999999999999,"Severe",26.6,36.200000000000003,37.299999999999997,null,4,117.12,1.3,"Severe",19.2,26.6,29.2,null,4,109.57,1.3,"Severe",9.4,17.100000000000001,33.799999999999997,null,4,96.64,1.3,"Severe",7.2,31.1,41.6,null,4,97.04,1.3,"Severe",27.8,38.6,41.3,null,4,94.56,1.25,"Severe",21.3,36.200000000000003,42.8,null,4,101.3,1.3,"Severe",14.4,30.8,38.799999999999997,null,"Row Crops - Straight Row (Poor Condition)",72,81,88,91]
[null,null,null,null,null,null,null,null,null,null,null,null,57,null,null,null,null,null,null,null,null,null,null,null,null,null,null,null,null,null,null,null,null,null,null,null,null,null,null,null,null,null,null,null,null,null,null,null,null,null,null,null,null,null,null,null,null,null,null,null,null,null,null,null,null,null,null,null,null,null,null,null,null,null,null,null,null,null,null,null,null,null,null,null,null,null,null,null,null,null,null,null,null,null,null,null,null,null,null,null,null,null,null,null,null,null,null,null,null,null,"Row Crops - Straight Row (Good Condition)",67,78,85,89]
[null,null,null,null,null,null,null,null,null,null,null,null,58,null,null,null,null,null,null,null,null,null,null,null,null,null,null,null,null,null,null,null,null,null,null,null,null,null,null,null,null,null,null,null,null,null,null,null,null,null,null,null,null,null,null,null,null,null,null,null,null,null,null,null,null,null,null,null,null,null,null,null,null,null,null,null,null,null,null,null,null,null,null,null,null,null,null,null,null,null,null,null,null,null,null,null,null,null,null,null,null,null,null,null,null,null,null,null,null,null,"Row Crops - Straight Row & Crop Residue (Poor Condition)",71,80,87,90]
[null,null,null,null,null,null,null,null,null,null,null,null,59,null,null,null,null,null,null,null,null,null,null,null,null,null,null,null,null,null,null,null,null,null,null,null,null,null,null,null,null,null,null,null,null,null,null,null,null,null,null,null,null,null,null,null,null,null,null,null,null,null,null,null,null,null,null,null,null,null,null,null,null,null,null,null,null,null,null,null,null,null,null,null,null,null,null,null,null,null,null,null,null,null,null,null,null,null,null,null,null,null,null,null,null,null,null,null,null,null,"Row Crops - Straight Row & Crop Residue (Good Condition)",64,75,82,85]
[null,null,null,null,null,null,null,null,null,null,null,null,60,null,null,null,null,null,null,null,null,null,null,null,null,null,null,null,null,null,null,null,null,null,null,null,null,null,null,null,null,null,null,null,null,null,null,null,null,null,null,null,null,null,null,null,null,null,null,null,null,null,null,null,null,null,null,null,null,null,null,null,null,null,null,null,null,null,null,null,null,null,null,null,null,null,null,null,null,null,null,null,null,null,null,null,null,null,null,null,null,null,null,null,null,null,null,null,null,null,"Row Crops - Contoured (Poor Condition)",70,79,84,88]
[null,null,null,null,null,null,null,null,null,null,null,null,61,null,null,null,null,null,null,null,null,null,null,null,null,null,null,null,null,null,null,null,null,null,null,null,null,null,null,null,null,null,null,null,null,null,null,null,null,null,null,null,null,null,null,null,null,null,null,null,null,null,null,null,null,null,null,null,null,null,null,null,null,null,null,null,null,null,null,null,null,null,null,null,null,null,null,null,null,null,null,null,null,null,null,null,null,null,null,null,null,null,null,null,null,null,null,null,null,null,"Row Crops - Contoured (Good Condition)",65,75,82,86]
[null,null,null,null,null,null,null,null,null,null,null,null,62,null,null,null,null,null,null,null,null,null,null,null,null,null,null,null,null,null,null,null,null,null,null,null,null,null,null,null,null,null,null,null,null,null,null,null,null,null,null,null,null,null,null,null,null,null,null,null,null,null,null,null,null,null,null,null,null,null,null,null,null,null,null,null,null,null,null,null,null,null,null,null,null,null,null,null,null,null,null,null,null,null,null,null,null,null,null,null,null,null,null,null,null,null,null,null,null,null,"Row Crops - Contoured & Crop Residue (Poor Condition)",69,78,83,87]
[null,null,null,null,null,null,null,null,null,null,null,null,63,null,null,null,null,null,null,null,null,null,null,null,null,null,null,null,null,null,null,null,null,null,null,null,null,null,null,null,null,null,null,null,null,null,null,null,null,null,null,null,null,null,null,null,null,null,null,null,null,null,null,null,null,null,null,null,null,null,null,null,null,null,null,null,null,null,null,null,null,null,null,null,null,null,null,null,null,null,null,null,null,null,null,null,null,null,null,null,null,null,null,null,null,null,null,null,null,null,"Row Crops - Contoured & Crop Residue (Good Condition)",64,74,81,85]
[null,null,null,null,null,null,null,null,null,null,null,null,64,null,null,null,null,null,null,null,null,null,null,null,null,null,null,null,null,null,null,null,null,null,null,null,null,null,null,null,null,null,null,null,null,null,null,null,null,null,null,null,null,null,null,null,null,null,null,null,null,null,null,null,null,null,null,null,null,null,null,null,null,null,null,null,null,null,null,null,null,null,null,null,null,null,null,null,null,null,null,null,null,null,null,null,null,null,null,null,null,null,null,null,null,null,null,null,null,null,"Row Crops - Contoured & Terraced (Poor Condition)",66,74,80,82]
[null,null,null,null,null,null,null,null,null,null,null,null,65,null,null,null,null,null,null,null,null,null,null,null,null,null,null,null,null,null,null,null,null,null,null,null,null,null,null,null,null,null,null,null,null,null,null,null,null,null,null,null,null,null,null,null,null,null,null,null,null,null,null,null,null,null,null,null,null,null,null,null,null,null,null,null,null,null,null,null,null,null,null,null,null,null,null,null,null,null,null,null,null,null,null,null,null,null,null,null,null,null,null,null,null,null,null,null,null,null,"Row Crops - Contoured & Terraced (Good Condition)",62,71,78,81]
[null,null,null,null,null,null,null,null,null,null,null,null,66,null,null,null,null,null,null,null,null,null,null,null,null,null,null,null,null,null,null,null,null,null,null,null,null,null,null,null,null,null,null,null,null,null,null,null,null,null,null,null,null,null,null,null,null,null,null,null,null,null,null,null,null,null,null,null,null,null,null,null,null,null,null,null,null,null,null,null,null,null,null,null,null,null,null,null,null,null,null,null,null,null,null,null,null,null,null,null,null,null,null,null,null,null,null,null,null,null,"Row Crops - Contoured, Terraced & Crop Residue (Poor Condition)",65,73,79,81]
[null,null,null,null,null,null,null,null,null,null,null,null,67,null,null,null,null,null,null,null,null,null,null,null,null,null,null,null,null,null,null,null,null,null,null,null,null,null,null,null,null,null,null,null,null,null,null,null,null,null,null,null,null,null,null,null,null,null,null,null,null,null,null,null,null,null,null,null,null,null,null,null,null,null,null,null,null,null,null,null,null,null,null,null,null,null,null,null,null,null,null,null,null,null,null,null,null,null,null,null,null,null,null,null,null,null,null,null,null,null,"Row Crops - Contoured, Terraced & Crop Residue (Good Condition)",61,70,77,80]
[null,null,null,null,null,null,null,null,null,null,null,null,68,null,null,null,null,null,null,null,null,null,null,null,null,null,null,null,null,null,null,null,null,null,null,null,null,null,null,null,null,null,null,null,null,null,null,null,null,null,null,null,null,null,null,null,null,null,null,null,null,null,null,null,null,null,null,null,null,null,null,null,null,null,null,null,null,null,null,null,null,null,null,null,null,null,null,null,null,null,null,null,null,null,null,null,null,null,null,null,null,null,null,null,null,null,null,null,null,null,"Small Grain - Straight Row (Poor Condition)",65,76,84,88]
[null,null,null,null,null,null,null,null,null,null,null,null,69,null,null,null,null,null,null,null,null,null,null,null,null,null,null,null,null,null,null,null,null,null,null,null,null,null,null,null,null,null,null,null,null,null,null,null,null,null,null,null,null,null,null,null,null,null,null,null,null,null,null,null,null,null,null,null,null,null,null,null,null,null,null,null,null,null,null,null,null,null,null,null,null,null,null,null,null,null,null,null,null,null,null,null,null,null,null,null,null,null,null,null,null,null,null,null,null,null,"Small Grain - Straight Row (Good Condition)",63,75,83,87]
[null,null,null,null,null,null,null,null,null,null,null,null,70,null,null,null,null,null,null,null,null,null,null,null,null,null,null,null,null,null,null,null,null,null,null,null,null,null,null,null,null,null,null,null,null,null,null,null,null,null,null,null,null,null,null,null,null,null,null,null,null,null,null,null,null,null,null,null,null,null,null,null,null,null,null,null,null,null,null,null,null,null,null,null,null,null,null,null,null,null,null,null,null,null,null,null,null,null,null,null,null,null,null,null,null,null,null,null,null,null,"Small Grain - Straight Row & Crop Residue (Poor Condition)",64,75,83,86]
[null,null,null,null,null,null,null,null,null,null,null,null,71,null,null,null,null,null,null,null,null,null,null,null,null,null,null,null,null,null,null,null,null,null,null,null,null,null,null,null,null,null,null,null,null,null,null,null,null,null,null,null,null,null,null,null,null,null,null,null,null,null,null,null,null,null,null,null,null,null,null,null,null,null,null,null,null,null,null,null,null,null,null,null,null,null,null,null,null,null,null,null,null,null,null,null,null,null,null,null,null,null,null,null,null,null,null,null,null,null,"Small Grain - Straight Row & Crop Residue (Good Condition)",60,72,80,84]
[null,null,null,null,null,null,null,null,null,null,null,null,72,null,null,null,null,null,null,null,null,null,null,null,null,null,null,null,null,null,null,null,null,null,null,null,null,null,null,null,null,null,null,null,null,null,null,null,null,null,null,null,null,null,null,null,null,null,null,null,null,null,null,null,null,null,null,null,null,null,null,null,null,null,null,null,null,null,null,null,null,null,null,null,null,null,null,null,null,null,null,null,null,null,null,null,null,null,null,null,null,null,null,null,null,null,null,null,null,null,"Small Grain - Contoured (Poor Condition)",63,74,82,85]
[null,null,null,null,null,null,null,null,null,null,null,null,73,null,null,null,null,null,null,null,null,null,null,null,null,null,null,null,null,null,null,null,null,null,null,null,null,null,null,null,null,null,null,null,null,null,null,null,null,null,null,null,null,null,null,null,null,null,null,null,null,null,null,null,null,null,null,null,null,null,null,null,null,null,null,null,null,null,null,null,null,null,null,null,null,null,null,null,null,null,null,null,null,null,null,null,null,null,null,null,null,null,null,null,null,null,null,null,null,null,"Small Grain - Contoured (Good Condition)",61,73,81,84]
[null,null,null,null,null,null,null,null,null,null,null,null,74,null,null,null,null,null,null,null,null,null,null,null,null,null,null,null,null,null,null,null,null,null,null,null,null,null,null,null,null,null,null,null,null,null,null,null,null,null,null,null,null,null,null,null,null,null,null,null,null,null,null,null,null,null,null,null,null,null,null,null,null,null,null,null,null,null,null,null,null,null,null,null,null,null,null,null,null,null,null,null,null,null,null,null,null,null,null,null,null,null,null,null,null,null,null,null,null,null,"Small Grain - Contoured & Crop Residue (Poor Condition)",62,73,81,84]
[null,null,null,null,null,null,null,null,null,null,null,null,75,null,null,null,null,null,null,null,null,null,null,null,null,null,null,null,null,null,null,null,null,null,null,null,null,null,null,null,null,null,null,null,null,null,null,null,null,null,null,null,null,null,null,null,null,null,null,null,null,null,null,null,null,null,null,null,null,null,null,null,null,null,null,null,null,null,null,null,null,null,null,null,null,null,null,null,null,null,null,null,null,null,null,null,null,null,null,null,null,null,null,null,null,null,null,null,null,null,"Small Grain - Contoured & Crop Residue (Good Condition)",60,72,80,83]
[null,null,null,null,null,null,null,null,null,null,null,null,76,null,null,null,null,null,null,null,null,null,null,null,null,null,null,null,null,null,null,null,null,null,null,null,null,null,null,null,null,null,null,null,null,null,null,null,null,null,null,null,null,null,null,null,null,null,null,null,null,null,null,null,null,null,null,null,null,null,null,null,null,null,null,null,null,null,null,null,null,null,null,null,null,null,null,null,null,null,null,null,null,null,null,null,null,null,null,null,null,null,null,null,null,null,null,null,null,null,"Small Grain - Contoured & Terraced (Poor Condition)",61,72,79,82]
[null,null,null,null,null,null,null,null,null,null,null,null,77,null,null,null,null,null,null,null,null,null,null,null,null,null,null,null,null,null,null,null,null,null,null,null,null,null,null,null,null,null,null,null,null,null,null,null,null,null,null,null,null,null,null,null,null,null,null,null,null,null,null,null,null,null,null,null,null,null,null,null,null,null,null,null,null,null,null,null,null,null,null,null,null,null,null,null,null,null,null,null,null,null,null,null,null,null,null,null,null,null,null,null,null,null,null,null,null,null,"Small Grain - Contoured & Terraced (Good Condition)",59,70,78,81]
[null,null,null,null,null,null,null,null,null,null,null,null,78,null,null,null,null,null,null,null,null,null,null,null,null,null,null,null,null,null,null,null,null,null,null,null,null,null,null,null,null,null,null,null,null,null,null,null,null,null,null,null,null,null,null,null,null,null,null,null,null,null,null,null,null,null,null,null,null,null,null,null,null,null,null,null,null,null,null,null,null,null,null,null,null,null,null,null,null,null,null,null,null,null,null,null,null,null,null,null,null,null,null,null,null,null,null,null,null,null,"Small Grain - Contoured, Terraced & Crop Residue (Poor Condition)",60,71,78,81]
[null,null,null,null,null,null,null,null,null,null,null,null,79,null,null,null,null,null,null,null,null,null,null,null,null,null,null,null,null,null,null,null,null,null,null,null,null,null,null,null,null,null,null,null,null,null,null,null,null,null,null,null,null,null,null,null,null,null,null,null,null,null,null,null,null,null,null,null,null,null,null,null,null,null,null,null,null,null,null,null,null,null,null,null,null,null,null,null,null,null,null,null,null,null,null,null,null,null,null,null,null,null,null,null,null,null,null,null,null,null,"Small Grain - Contoured, Terraced & Crop Residue (Good Condition)",58,69,77,80]
[null,null,null,null,null,null,null,null,null,null,null,null,80,null,null,null,null,null,null,null,null,null,null,null,null,null,null,null,null,null,null,null,null,null,null,null,null,null,null,null,null,null,null,null,null,null,null,null,null,null,null,null,null,null,null,null,null,null,null,null,null,null,null,null,null,null,null,null,null,null,null,null,null,null,null,null,null,null,null,null,null,null,null,null,null,null,null,null,null,null,null,null,null,null,null,null,null,null,null,null,null,null,null,null,null,null,null,null,null,null,"Close-Seeded or Broadcast Legumes or Rotation Meadow - Straight Row (Poor Condition)",66,77,85,89]
[null,null,null,null,null,null,null,null,null,null,null,null,81,null,null,null,null,null,null,null,null,null,null,null,null,null,null,null,null,null,null,null,null,null,null,null,null,null,null,null,null,null,null,null,null,null,null,null,null,null,null,null,null,null,null,null,null,null,null,null,null,null,null,null,null,null,null,null,null,null,null,null,null,null,null,null,null,null,null,null,null,null,null,null,null,null,null,null,null,null,null,null,null,null,null,null,null,null,null,null,null,null,null,null,null,null,null,null,null,null,"Close-Seeded or Broadcast Legumes or Rotation Meadow - Straight Row (Good Condition)",58,72,81,85]
[null,null,null,null,null,null,null,null,null,null,null,null,82,null,null,null,null,null,null,null,null,null,null,null,null,null,null,null,null,null,null,null,null,null,null,null,null,null,null,null,null,null,null,null,null,null,null,null,null,null,null,null,null,null,null,null,null,null,null,null,null,null,null,null,null,null,null,null,null,null,null,null,null,null,null,null,null,null,null,null,null,null,null,null,null,null,null,null,null,null,null,null,null,null,null,null,null,null,null,null,null,null,null,null,null,null,null,null,null,null,"Close-Seeded or Broadcast Legumes or Rotation Meadow - Contoured (Poor Condition)",64,75,83,85]
[null,null,null,null,null,null,null,null,null,null,null,null,83,null,null,null,null,null,null,null,null,null,null,null,null,null,null,null,null,null,null,null,null,null,null,null,null,null,null,null,null,null,null,null,null,null,null,null,null,null,null,null,null,null,null,null,null,null,null,null,null,null,null,null,null,null,null,null,null,null,null,null,null,null,null,null,null,null,null,null,null,null,null,null,null,null,null,null,null,null,null,null,null,null,null,null,null,null,null,null,null,null,null,null,null,null,null,null,null,null,"Close-Seeded or Broadcast Legumes or Rotation Meadow - Contoured (Good Condition)",55,69,78,83]
[null,null,null,null,null,null,null,null,null,null,null,null,84,null,null,null,null,null,null,null,null,null,null,null,null,null,null,null,null,null,null,null,null,null,null,null,null,null,null,null,null,null,null,null,null,null,null,null,null,null,null,null,null,null,null,null,null,null,null,null,null,null,null,null,null,null,null,null,null,null,null,null,null,null,null,null,null,null,null,null,null,null,null,null,null,null,null,null,null,null,null,null,null,null,null,null,null,null,null,null,null,null,null,null,null,null,null,null,null,null,"Close-Seeded or Broadcast Legumes or Rotation Meadow - Contoured & Terraced (Poor Condition)",63,73,80,83]
[null,null,null,null,null,null,null,null,null,null,null,null,85,null,null,null,null,null,null,null,null,null,null,null,null,null,null,null,null,null,null,null,null,null,null,null,null,null,null,null,null,null,null,null,null,null,null,null,null,null,null,null,null,null,null,null,null,null,null,null,null,null,null,null,null,null,null,null,null,null,null,null,null,null,null,null,null,null,null,null,null,null,null,null,null,null,null,null,null,null,null,null,null,null,null,null,null,null,null,null,null,null,null,null,null,null,null,null,null,null,"Close-Seeded or Broadcast Legumes or Rotation Meadow - Contoured & Terraced (Good Condition)",51,67,76,80]
[null,null,null,null,null,null,null,null,null,null,null,null,null,null,null,null,null,null,null,null,null,null,null,null,null,null,null,null,null,null,null,null,null,null,null,null,null,null,null,null,null,null,null,null,null,null,null,null,null,null,null,null,null,null,null,null,null,null,null,null,null,null,null,null,null,null,null,null,null,null,null,null,null,null,null,null,null,null,null,null,null,null,null,null,null,null,null,null,null,null,null,null,null,null,null,null,null,null,null,null,null,null,null,null,null,null,null,null,null,null,"Pasture, Grassland, or Range-Continuous Forage for Grazing (Poor Condition)",68,79,86,89]
[null,null,null,null,null,null,null,null,null,null,null,null,null,null,null,null,null,null,null,null,null,null,null,null,null,null,null,null,null,null,null,null,null,null,null,null,null,null,null,null,null,null,null,null,null,null,null,null,null,null,null,null,null,null,null,null,null,null,null,null,null,null,null,null,null,null,null,null,null,null,null,null,null,null,null,null,null,null,null,null,null,null,null,null,null,null,null,null,null,null,null,null,null,null,null,null,null,null,null,null,null,null,null,null,null,null,null,null,null,null,"Pasture, Grassland, or Range-Continuous Forage for Grazing (Fair Condition)",49,69,79,84]
[null,null,null,null,null,null,null,null,null,null,null,null,null,null,null,null,null,null,null,null,null,null,null,null,null,null,null,null,null,null,null,null,null,null,null,null,null,null,null,null,null,null,null,null,null,null,null,null,null,null,null,null,null,null,null,null,null,null,null,null,null,null,null,null,null,null,null,null,null,null,null,null,null,null,null,null,null,null,null,null,null,null,null,null,null,null,null,null,null,null,null,null,null,null,null,null,null,null,null,null,null,null,null,null,null,null,null,null,null,null,"Pasture, Grassland, or Range-Continuous Forage for Grazing (Good Condition)",39,61,74,80]
[null,null,null,null,null,null,null,null,null,null,null,null,null,null,null,null,null,null,null,null,null,null,null,null,null,null,null,null,null,null,null,null,null,null,null,null,null,null,null,null,null,null,null,null,null,null,null,null,null,null,null,null,null,null,null,null,null,null,null,null,null,null,null,null,null,null,null,null,null,null,null,null,null,null,null,null,null,null,null,null,null,null,null,null,null,null,null,null,null,null,null,null,null,null,null,null,null,null,null,null,null,null,null,null,null,null,null,null,null,null,"Meadow-Continuous Grass, Protected from Grazing and Generally Mowed for Hay",30,58,71,78]
[null,null,null,null,null,null,null,null,null,null,null,null,null,null,null,null,null,null,null,null,null,null,null,null,null,null,null,null,null,null,null,null,null,null,null,null,null,null,null,null,null,null,null,null,null,null,null,null,null,null,null,null,null,null,null,null,null,null,null,null,null,null,null,null,null,null,null,null,null,null,null,null,null,null,null,null,null,null,null,null,null,null,null,null,null,null,null,null,null,null,null,null,null,null,null,null,null,null,null,null,null,null,null,null,null,null,null,null,null,null,"Brush-Forbs-Grass Mixture with Brush the Major Element (Poor Condition)",48,67,77,83]
[null,null,null,null,null,null,null,null,null,null,null,null,null,null,null,null,null,null,null,null,null,null,null,null,null,null,null,null,null,null,null,null,null,null,null,null,null,null,null,null,null,null,null,null,null,null,null,null,null,null,null,null,null,null,null,null,null,null,null,null,null,null,null,null,null,null,null,null,null,null,null,null,null,null,null,null,null,null,null,null,null,null,null,null,null,null,null,null,null,null,null,null,null,null,null,null,null,null,null,null,null,null,null,null,null,null,null,null,null,null,"Brush-Forbs-Grass Mixture with Brush the Major Element (Fair Condition)",35,56,70,77]
[null,null,null,null,null,null,null,null,null,null,null,null,null,null,null,null,null,null,null,null,null,null,null,null,null,null,null,null,null,null,null,null,null,null,null,null,null,null,null,null,null,null,null,null,null,null,null,null,null,null,null,null,null,null,null,null,null,null,null,null,null,null,null,null,null,null,null,null,null,null,null,null,null,null,null,null,null,null,null,null,null,null,null,null,null,null,null,null,null,null,null,null,null,null,null,null,null,null,null,null,null,null,null,null,null,null,null,null,null,null,"Brush-Forbs-Grass Mixture with Brush the Major Element (Good Condition)",30,48,65,73]
[null,null,null,null,null,null,null,null,null,null,null,null,null,null,null,null,null,null,null,null,null,null,null,null,null,null,null,null,null,null,null,null,null,null,null,null,null,null,null,null,null,null,null,null,null,null,null,null,null,null,null,null,null,null,null,null,null,null,null,null,null,null,null,null,null,null,null,null,null,null,null,null,null,null,null,null,null,null,null,null,null,null,null,null,null,null,null,null,null,null,null,null,null,null,null,null,null,null,null,null,null,null,null,null,null,null,null,null,null,null,"Woods-Grass Combination (Orchard or Tree Farm) (Poor Condition)",57,73,82,86]
[null,null,null,null,null,null,null,null,null,null,null,null,null,null,null,null,null,null,null,null,null,null,null,null,null,null,null,null,null,null,null,null,null,null,null,null,null,null,null,null,null,null,null,null,null,null,null,null,null,null,null,null,null,null,null,null,null,null,null,null,null,null,null,null,null,null,null,null,null,null,null,null,null,null,null,null,null,null,null,null,null,null,null,null,null,null,null,null,null,null,null,null,null,null,null,null,null,null,null,null,null,null,null,null,null,null,null,null,null,null,"Woods-Grass Combination (Orchard or Tree Farm) (Fair Condition)",43,65,76,82]
[null,null,null,null,null,null,null,null,null,null,null,null,null,null,null,null,null,null,null,null,null,null,null,null,null,null,null,null,null,null,null,null,null,null,null,null,null,null,null,null,null,null,null,null,null,null,null,null,null,null,null,null,null,null,null,null,null,null,null,null,null,null,null,null,null,null,null,null,null,null,null,null,null,null,null,null,null,null,null,null,null,null,null,null,null,null,null,null,null,null,null,null,null,null,null,null,null,null,null,null,null,null,null,null,null,null,null,null,null,null,"Woods-Grass Combination (Orchard or Tree Farm) (Good Condition)",32,58,72,79]
[null,null,null,null,null,null,null,null,null,null,null,null,null,null,null,null,null,null,null,null,null,null,null,null,null,null,null,null,null,null,null,null,null,null,null,null,null,null,null,null,null,null,null,null,null,null,null,null,null,null,null,null,null,null,null,null,null,null,null,null,null,null,null,null,null,null,null,null,null,null,null,null,null,null,null,null,null,null,null,null,null,null,null,null,null,null,null,null,null,null,null,null,null,null,null,null,null,null,null,null,null,null,null,null,null,null,null,null,null,null,"Woods (Poor Condition)",45,66,77,83]
[null,null,null,null,null,null,null,null,null,null,null,null,null,null,null,null,null,null,null,null,null,null,null,null,null,null,null,null,null,null,null,null,null,null,null,null,null,null,null,null,null,null,null,null,null,null,null,null,null,null,null,null,null,null,null,null,null,null,null,null,null,null,null,null,null,null,null,null,null,null,null,null,null,null,null,null,null,null,null,null,null,null,null,null,null,null,null,null,null,null,null,null,null,null,null,null,null,null,null,null,null,null,null,null,null,null,null,null,null,null,"Woods (Fair Condition)",36,60,73,79]
[null,null,null,null,null,null,null,null,null,null,null,null,null,null,null,null,null,null,null,null,null,null,null,null,null,null,null,null,null,null,null,null,null,null,null,null,null,null,null,null,null,null,null,null,null,null,null,null,null,null,null,null,null,null,null,null,null,null,null,null,null,null,null,null,null,null,null,null,null,null,null,null,null,null,null,null,null,null,null,null,null,null,null,null,null,null,null,null,null,null,null,null,null,null,null,null,null,null,null,null,null,null,null,null,null,null,null,null,null,null,"Woods (Good Condition)",30,55,70,77]
[null,null,null,null,null,null,null,null,null,null,null,null,null,null,null,null,null,null,null,null,null,null,null,null,null,null,null,null,null,null,null,null,null,null,null,null,null,null,null,null,null,null,null,null,null,null,null,null,null,null,null,null,null,null,null,null,null,null,null,null,null,null,null,null,null,null,null,null,null,null,null,null,null,null,null,null,null,null,null,null,null,null,null,null,null,null,null,null,null,null,null,null,null,null,null,null,null,null,null,null,null,null,null,null,null,null,null,null,null,null,"Farmstead-Buildings, Lanes, Driveways and Surrounding Lots",59,74,82,86]
[null,null,null,null,null,null,null,null,null,null,null,null,null,null,null,null,null,null,null,null,null,null,null,null,null,null,null,null,null,null,null,null,null,null,null,null,null,null,null,null,null,null,null,null,null,null,null,null,null,null,null,null,null,null,null,null,null,null,null,null,null,null,null,null,null,null,null,null,null,null,null,null,null,null,null,null,null,null,null,null,null,null,null,null,null,null,null,null,null,null,null,null,null,null,null,null,null,null,null,null,null,null,null,null,null,null,null,null,null,null,"Roads (Including ROW) - Dirt",72,82,87,89]
[null,null,null,null,null,null,null,null,null,null,null,null,null,null,null,null,null,null,null,null,null,null,null,null,null,null,null,null,null,null,null,null,null,null,null,null,null,null,null,null,null,null,null,null,null,null,null,null,null,null,null,null,null,null,null,null,null,null,null,null,null,null,null,null,null,null,null,null,null,null,null,null,null,null,null,null,null,null,null,null,null,null,null,null,null,null,null,null,null,null,null,null,null,null,null,null,null,null,null,null,null,null,null,null,null,null,null,null,null,null,"Roads (Including ROW) - Gravel",76,85,89,91]
[null,null,null,null,null,null,null,null,null,null,null,null,null,null,null,null,null,null,null,null,null,null,null,null,null,null,null,null,null,null,null,null,null,null,null,null,null,null,null,null,null,null,null,null,null,null,null,null,null,null,null,null,null,null,null,null,null,null,null,null,null,null,null,null,null,null,null,null,null,null,null,null,null,null,null,null,null,null,null,null,null,null,null,null,null,null,null,null,null,null,null,null,null,null,null,null,null,null,null,null,null,null,null,null,null,null,null,null,null,null,"Open Water",100,100,100,100]
[null,null,null,null,null,null,null,null,null,null,null,null,null,null,null,null,null,null,null,null,null,null,null,null,null,null,null,null,null,null,null,null,null,null,null,null,null,null,null,null,null,null,null,null,null,null,null,null,null,null,null,null,null,null,null,null,null,null,null,null,null,null,null,null,null,null,null,null,null,null,null,null,null,null,null,null,null,null,null,null,null,null,null,null,null,null,null,null,null,null,null,null,null,null,null,null,null,null,null,null,null,null,null,null,null,null,null,null,null,null,"Rock Cut/Bench",83,89,92,93]